Cogmind - Beta 15 @@@ ROGUE MODE // 2025.08.26 @ 11:59:37 Player: BVrutally Odd Result: Destroyed by MAIN.C with Omega Cannon Performance ------------- Evolutions (9) 4500 Regions Visited (31) 6200 Robots Destroyed (405) 2025 Value Destroyed (20131) 20131 Prototype IDs (250) 5000 Alien Tech Used (0) 0 Bonus (27018) 27018 TOTAL SCORE: 64874 Bonus ------- High Alert Combat Kills 2420 Follower Combat Kills 1819 Awakened Behemoth Slayer 1000 Network Hubs Disabled 200 Aligned with FarCom 300 Met Data Miner 300 Used Data Conduit 3000 Met Imprinter 300 Met Warlord at Base 500 MAIN.C Attacked Warlord 500 Warlord Defense Kills 4312 Built Enhanced Grunts 300 A7 Reached Mainframe 300 Pursued by Intercept 1500 Destroyed MAIN.C Guards 500 Met MAIN.C 5000 Hacked MAIN.C 300 Destroyed MAIN.C Shell 5000 Friendly Fire -533 Cogmind --------- Core Integrity 0/1600 Matter 285/300 Energy 100/100 System Corruption 20% Temperature Cool (2) Movement Flying (35) Location -1/Command Parts ------- > --- POWER (3) -------- (None) > --- PROPULSION (6) --- Cesium-ion Thruster > --- UTILITY (12) ----- (None) > --- WEAPON (4) ------- (None) > --- INVENTORY (5) ---- Quantum Reactor Zero-point Reactor Advanced Coolant Injector Nova Cannon Improved Remote Datajack Peak State ------------ > --- POWER ------------ Zero-point Reactor Vortex Chain Reactor > --- PROPULSION ------- Armored Heavy Treads Advanced Heavy Treads Advanced Heavy Siege Treads > --- UTILITY ---------- Advanced Cooling System Advanced Cooling System Advanced Cooling System Experimental Coolant Injector Huge Storage Unit Advanced Signal Interpreter Advanced Weapon Cycler Heavy Regenerative Plating Graphene Brace Deep Network Scanner Long-range Tractor Beam > --- WEAPON ----------- Compact HERF Cannon Nova Cannon Firepult > --- INVENTORY -------- Quantum Reactor Light Quantum Reactor Improved Coolant Injector Advanced Coolant Injector Experimental Energy Well Experimental Energy Well Matter Compressor Advanced Particle Charger Layered Medium Armor Plating Heavy Reactive Plating Advanced Force Field Vortex Cannon Vortex Cannon Vortex Cannon Vortex Cannon Multirail Enhanced Hardcell Cannon Enhanced Hardcell Cannon Enhanced Hardcell Cannon Enhanced Hardcell Cannon Gamma Bomb Array Fusion Bomb Launcher Improved Remote Datajack CR-A16's Behemoth Slayer [Rating: 215] Favorites ----------- Power Neutrino Core Engine Heavy Ion Engine Power Core Neutrino Core Reactor Particle Reactor Propulsion Light Treads Treads Light Treads Leg Enhanced Flexi-carbon Leg Wheel Armored Huge Wheel Flight Unit Cesium-ion Thruster Utility Huge Storage Unit Device Improved Sensor Array Storage Huge Storage Unit Processor Advanced Signal Interpreter Hackware Deep Network Scanner Protection Improved Medium Armor Plating Weapon Advanced Assault Cannon Energy Gun Advanced Plasma Rifle Energy Cannon Advanced Plasma Cannon Ballistic Gun Assault Rifle Ballistic Cannon Advanced Assault Cannon Launcher Gamma Bomb Array Special Weapon RU-N14's Throwing Claymores Impact Weapon Makeshift Hammer Slashing Weapon Phasing Sabre Piercing Weapon CR-A16's Behemoth Slayer Build | -11 -10 -10 -10 -9 -8 -7 -7 -7 -7 -6 -6 -6 -6 -6 -5 -5 -5 -5 -5 -5 -4 -4 -4 -4 -3 -3 -3 -3 -2 -1 -1 ------- Run | Yrd Mat Min Exi Min Mat Fac Low Low Zio Pro Fac Low Low Dat Pro Fac Ext Cet Arc Hub Fac Upp Upp War Pro Res Arm Lab Res Acc Com Slots Evolved 18 | . . . . . 4 2 . . . . 2 . . . . 2 . . . . 2 . . . . 2 . . 2 2 . Power 2 | . . . . . . . . . . . 1 . . . . . . . . . . . . . . . . . . 1 . Propulsion 4 | . . . . . 2 . . . . . . . . . . . . . . . 2 . . . . . . . . . . Utility 10 | . . . . . 1 2 . . . . 1 . . . . 2 . . . . . . . . . 1 . . 2 1 . Weapon 2 | . . . . . 1 . . . . . . . . . . . . . . . . . . . . 1 . . . . . Parts Attached 219 | 7 8 . . 1 32 18 3 4 10 6 5 2 1 5 8 2 11 3 5 2 24 4 3 5 2 6 19 . 1 13 9 Power 20 | 1 1 . . . 2 . . 1 1 . . . . 1 1 . 2 . 1 . 2 1 1 . . 1 2 . . 1 1 Engine 5 | 1 1 . . . 1 . . . 1 . . . . 1 . . . . . . . . . . . . . . . . . Core 6 | . . . . . 1 . . 1 . . . . . . . . 2 . . . 1 1 . . . . . . . . . Reactor 9 | . . . . . . . . . . . . . . . 1 . . . 1 . 1 . 1 . . 1 2 . . 1 1 Propulsion 48 | 2 3 . . 1 7 5 . 1 1 2 1 . . . 3 . 2 1 2 . 8 . . . . . 5 . 1 1 2 Treads 36 | 2 1 . . . 7 2 . 1 1 2 . . . . . . 2 1 2 . 8 . . . . . 5 . 1 1 . Leg 3 | . . . . . . . . . . . . . . . 3 . . . . . . . . . . . . . . . . Wheel 7 | . 2 . . 1 . 3 . . . . 1 . . . . . . . . . . . . . . . . . . . . Hover . | . . . . . . . . . . . . . . . . . . . . . . . . . . . . . . . . Flight 2 | . . . . . . . . . . . . . . . . . . . . . . . . . . . . . . . 2 Utility 86 | 2 2 . . . 11 8 2 . 3 2 2 2 . 2 3 2 4 1 2 1 9 3 2 1 1 2 7 . . 9 3 Device 44 | 1 1 . . . 4 3 1 . 2 2 2 . . . 2 2 . . 1 . 4 2 2 . . 1 6 . . 7 1 Storage 2 | 1 1 . . . . . . . . . . . . . . . . . . . . . . . . . . . . . . Processor 7 | . . . . . . 1 1 . . . . . . . . . . . . . 2 1 . 1 . 1 . . . . . Hackware 2 | . . . . . . . . . . . . . . . . . . . 1 . 1 . . . . . . . . . . Protection 31 | . . . . . 7 4 . . 1 . . 2 . 2 1 . 4 1 . 1 2 . . . 1 . 1 . . 2 2 Artifact . | . . . . . . . . . . . . . . . . . . . . . . . . . . . . . . . . Weapon 65 | 2 2 . . . 12 5 1 2 5 2 2 . 1 2 1 . 3 1 . 1 5 . . 4 1 3 5 . . 2 3 Energy Gun 11 | . 1 . . . 3 2 . . . . . . . 1 . . . . . . 2 . . 2 . . . . . . . Energy Cannon 14 | . . . . . . . . . . . 1 . . 1 1 . 2 . . . 1 . . 1 . 1 3 . . 1 2 Ballistic Gun 6 | 2 1 . . . 1 . . . . . . . . . . . . 1 . . . . . . . . . . . 1 . Ballistic Cannon 17 | . . . . . 6 2 . 1 1 1 1 . . . . . . . . . 1 . . . 1 1 1 . . . 1 Launcher 6 | . . . . . 2 . . 1 . . . . . . . . . . . . 1 . . 1 . . 1 . . . . Special Weapon 5 | . . . . . . . . . 3 . . . 1 . . . . . . . . . . . . 1 . . . . . Impact Weapon 1 | . . . . . . . . . 1 . . . . . . . . . . . . . . . . . . . . . . Slashing Weapon 3 | . . . . . . 1 1 . . . . . . . . . 1 . . . . . . . . . . . . . . Piercing Weapon 2 | . . . . . . . . . . 1 . . . . . . . . . 1 . . . . . . . . . . . Special Melee Weapon . | . . . . . . . . . . . . . . . . . . . . . . . . . . . . . . . . Unidentified Prototypes 12 | . . . . . 4 . . . 2 . 1 . . . . . . . . . . . . 3 . . . . . 1 1 Corrupted Parts 7 | . . . . . . . . . . . . . . . 7 . . . . . . . . . . . . . . . . System Corruption 45 | . . . . . . . . . . . . . . . 45 . . . . . . . . . . . . . . . . Parts Lost 70 | . 4 . . . 7 1 . . . 1 . . . 5 . . 5 . . 2 8 . 2 . 1 . 5 . . 2 27 Power 7 | . 1 . . . . . . . . . . . . 1 . . . . . . . . 1 . . . 2 . . . 2 Propulsion 15 | . 2 . . . 5 . . . . . . . . 1 . . 2 . . . 1 . . . . . . . . . 4 Utility 33 | . . . . . 2 1 . . . 1 . . . 3 . . 2 . . 2 6 . . . 1 . 2 . . 2 11 Weapon 15 | . 1 . . . . . . . . . . . . . . . 1 . . . 1 . 1 . . . 1 . . . 10 Highest Loss Streak 26 | . 2 . . . 4 1 . . . 1 . . . 3 . . 2 . . 1 4 . 1 . 1 . 3 . . 1 26 To Critical Strikes 2 | . . . . . . . . . . . . . . . . . 2 . . . . . . . . . . . . . . Average Backups 21 | 1 5 12 17 19 23 24 23 23 21 22 22 23 24 22 23 24 22 23 24 24 22 21 21 21 20 21 20 22 22 22 21 Power 2 | . . . 2 3 3 4 4 5 4 5 3 3 3 3 1 1 1 4 4 4 2 1 . . 1 1 . . . 2 2 Propulsion 2 | . . 2 2 2 1 2 2 1 . 1 2 3 3 2 4 5 4 3 4 4 4 6 6 3 3 3 1 1 . . . Utility 6 | . 3 6 7 7 6 7 7 6 5 5 5 6 6 5 8 8 7 8 8 7 7 5 6 7 6 7 7 8 7 7 7 Weapon 9 | . 1 4 5 6 10 10 10 10 10 11 11 11 12 10 10 10 8 8 8 8 7 8 7 9 9 9 10 12 12 12 11 Tool/Special . | . . . . . . . . . . . . . . . . . . . . . . . . . . . . . . . . Unused Backups 35 | . . . . . 9 4 . 3 . . 1 . . 2 . . 1 . 1 . 4 . . 3 . . 2 . . 2 3 Power 10 | . . . . . . . . . . . 1 . . 2 . . . . 1 . 2 . . . . . . . . 1 3 Propulsion 5 | . . . . . . . . . . . . . . . . . 1 . . . . . . 2 . . 2 . . . . Utility 15 | . . . . . 6 4 . 3 . . . . . . . . . . . . . . . 1 . . . . . 1 . Weapon 5 | . . . . . 3 . . . . . . . . . . . . . . . 2 . . . . . . . . . . Tool/Special . | . . . . . . . . . . . . . . . . . . . . . . . . . . . . . . . . Average Slot Usage (%) 89 | . 96 100 100 100 98 95 92 92 87 91 90 87 86 80 93 88 94 94 94 91 89 83 83 83 87 87 85 80 73 72 71 Engine 3 | . 12 14 14 14 7 7 7 6 2 7 6 6 6 4 5 . . . . . . . . . . . . . . . . Core 2 | . . . . . 1 . . . 4 . 6 6 6 6 6 5 4 5 1 . . 10 7 5 5 . . . . . . Reactor 2 | . . . . . . . . . . . . . . . . 5 5 5 8 11 9 . 1 5 5 8 6 4 4 4 7 Treads 16 | . 20 . . . 31 17 15 15 14 14 10 6 6 5 5 5 14 18 17 17 23 21 21 20 21 19 18 19 16 12 10 Wheel 4 | . 5 28 28 28 4 8 7 7 6 7 8 13 13 13 12 11 4 . . . . . . . . . . . . . . Device 15 | . 13 14 14 14 11 16 15 15 14 14 17 19 20 13 19 23 22 14 13 15 16 11 10 10 13 13 16 14 13 19 24 Storage 6 | . 13 14 14 14 9 7 7 7 6 7 6 6 6 6 6 5 5 5 5 5 5 5 5 5 5 4 4 4 4 4 3 Processor 4 | . . . . . . 3 6 7 7 3 . . . . . . . . . . 4 9 10 10 10 13 9 9 8 7 3 Hackware 1 | . . . . . . . . . . . . . . . . . . . . 4 2 5 5 5 5 4 4 4 4 4 3 Protection 7 | . . . . . 6 8 7 7 6 10 12 8 6 13 13 11 17 25 26 16 10 3 5 5 4 4 2 4 4 5 4 Energy Gun 2 | . 1 14 14 14 2 7 . . . . . . . 3 5 . . . . . 8 5 5 7 . . . . . . . Energy Cannon 2 | . . . . . . . . . . . . . . 3 5 5 4 4 5 5 . 4 4 1 . 2 8 14 13 11 9 Ballistic Gun 2 | . 25 14 14 14 . 4 . 1 . . . . . . . . . 4 5 1 1 . . . . . . . . . 1 Ballistic Cannon 7 | . . . . . 23 8 15 15 12 14 13 13 13 3 . 5 4 . . 2 . . . 2 9 9 4 . . . . Slashing Weapon 3 | . . . . . . 1 7 5 6 6 4 5 5 2 5 5 4 5 5 4 3 4 3 2 4 4 3 4 4 3 . Peak Build Rating 215 | 7 9 10 13 14 35 53 53 56 61 63 71 69 70 74 87 89 92 105 117 119 141 133 135 146 146 160 172 168 173 211 215 Average Rating 85 | 6 6 9 11 13 28 44 51 53 53 56 68 68 69 63 73 84 86 100 108 112 127 128 130 137 139 155 163 168 169 183 194 On Entrance 87 | . 7 9 10 13 14 31 53 53 56 54 60 69 69 61 74 78 89 92 104 117 110 137 132 132 146 140 159 169 168 173 211 Naked Turns 4 | . . . . . . . . . . . . . . . . . . . . . . . . . . . . . . . 4 Heaviest Build 216 | 15 92 91 91 91 111 118 117 121 123 122 149 148 150 146 150 152 165 166 170 167 167 159 162 185 176 171 196 186 188 204 216 Greatest Support 220 | 40 40 20 20 20 80 80 28 28 60 28 40 40 40 40 40 40 93 123 136 136 220 204 204 204 204 204 204 187 200 210 210 Greatest Overweight (x) 8 | . 8 4 4 4 3 6 4 4 4 4 5 3 3 3 3 3 5 1 1 1 . . . . . . 1 . . . 1 Average Overweight (x) 2 | . 2 4 4 4 1 3 4 4 3 4 3 3 3 3 3 3 3 1 1 1 . . . . . . . . . . . Largest Inventory Capacity 25 | 8 25 25 25 25 25 25 25 25 25 25 25 25 25 25 25 25 25 25 25 25 25 25 25 25 25 25 25 25 25 25 25 Average Capacity 24 | 7 24 25 25 25 25 25 25 25 24 25 25 25 25 25 25 25 25 25 25 25 25 25 25 25 25 25 25 25 25 25 24 Most Carried 25 | 2 13 14 19 22 25 25 25 25 25 25 25 25 25 25 25 25 25 25 25 25 25 25 25 25 25 25 25 25 25 25 25 Average Carried 22 | 1 5 12 17 20 24 25 24 24 23 24 24 24 25 23 24 25 23 24 25 24 24 24 24 24 24 24 24 25 24 24 23 Final Capacity 25 | 8 25 25 25 25 25 25 25 25 25 25 25 25 25 25 25 25 25 25 25 25 25 25 25 25 25 25 25 25 25 25 5 Final Carried 25 | 2 12 14 19 22 25 25 25 25 25 25 25 25 25 25 25 25 24 25 25 25 25 25 25 25 24 24 25 25 25 24 5 Class Distribution -------------------- 40% | Mutant 14% | Scavenger-Mutant 13% | Scavenger-Tank 9% | Scavenger-Assassin 7% | Hacker-Tank 5% | Tank 5% | Scavenger-Skirmisher Dominant Class ---------------- Mutant | -10/Materials Mutant | -10/Mines Mutant | -10/Exiles Mutant | -9/Mines Scavenger-Skirmisher | -8/Materials Tank | -7/Factory Mutant | -7/Lower Caves Mutant | -7/Lower Caves Mutant | -7/Zion Mutant | -6/Proximity Caves Mutant | -6/Factory Mutant | -6/Lower Caves Mutant | -6/Lower Caves Tank | -6/Data Miner Mutant | -5/Proximity Caves Scavenger-Mutant | -5/Factory Scavenger-Mutant | -5/Extension Commander-Mutant | -5/Cetus Commander-Mutant | -5/Archives Scavenger-Mutant | -5/Hub_04(d) Scavenger-Mutant | -4/Factory Scavenger-Assassin | -4/Upper Caves Scavenger-Assassin | -4/Upper Caves Scavenger-Tank | -4/Warlord Scavenger-Assassin | -3/Proximity Caves Scavenger-Tank | -3/Research Scavenger-Tank | -3/Armory Scavenger-Tank | -3/Lab Hacker-Tank | -2/Research Hacker-Tank | -1/Access Scavenger-Tank | -1/Command Resources | -11 -10 -10 -10 -9 -8 -7 -7 -7 -7 -6 -6 -6 -6 -6 -5 -5 -5 -5 -5 -5 -4 -4 -4 -4 -3 -3 -3 -3 -2 -1 -1 ----------- Run | Yrd Mat Min Exi Min Mat Fac Low Low Zio Pro Fac Low Low Dat Pro Fac Ext Cet Arc Hub Fac Upp Upp War Pro Res Arm Lab Res Acc Com Matter Collected 11688 | 390 499 71 . 11 1176 528 126 688 . 481 791 166 39 160 61 199 780 70 70 298 647 221 133 822 406 202 1609 . 97 516 431 Remotely 3266 | . . . . . . . . . . . 456 . . . . 43 780 70 . 143 174 . . . . . 763 . . 406 431 Salvage Created 20577 | 249 954 24 . 23 1063 525 270 448 . 394 1303 173 279 462 90 199 675 318 . 695 1976 125 299 744 21 366 3371 . . 2842 2689 Parts 802 | 20 48 . . 5 75 31 1 20 . 20 50 5 9 16 3 4 23 5 . 33 66 12 11 16 2 20 130 . . 115 62 Haulers Intercepted 11 | . 2 . . . 6 . . . . . 1 . . . . . . . . 1 1 . . . . . . . . . . Recyclers Shooed 15 | . 2 . . . 3 1 . . . . 4 . . . . . 1 . . . 3 . . . . . . . . 1 . Parts Field Recycled . | . . . . . . . . . . . . . . . . . . . . . . . . . . . . . . . . Retrieved Matter . | . . . . . . . . . . . . . . . . . . . . . . . . . . . . . . . . Parts Self-Destructed 65 | . . . . . . . 1 17 . 27 . 5 6 . . . . . . . . 5 4 . . . . . . . . Prevented 16 | . . . . . . . . 2 . 3 . 3 . . 3 . . . . . . . 5 . . . . . . . . Kills | -11 -10 -10 -10 -9 -8 -7 -7 -7 -7 -6 -6 -6 -6 -6 -5 -5 -5 -5 -5 -5 -4 -4 -4 -4 -3 -3 -3 -3 -2 -1 -1 ------- Run | Yrd Mat Min Exi Min Mat Fac Low Low Zio Pro Fac Low Low Dat Pro Fac Ext Cet Arc Hub Fac Upp Upp War Pro Res Arm Lab Res Acc Com Combat Hostiles Destroyed 294 | . 14 1 . . 27 5 . 14 . 6 5 2 8 4 1 . 13 4 . 11 21 4 3 33 3 3 51 . . 31 30 Melee 1 | . . . . . . . . . . . . . . . . . . . . . 1 . . . . . . . . . . Guns 31 | . 14 1 . . 4 1 . 2 . . . . . . . . . . . . 5 . . 2 . . . . . . 2 Cannons 69 | . . . . . 15 3 . 1 . 1 2 1 . . . . 5 . . 7 2 . . . 1 3 21 . . 3 4 AOE 114 | . . . . . 8 1 . 11 . 3 3 . 8 . . . 7 . . 3 4 4 . 31 2 . 11 . . 9 9 Classes Destroyed 27 | 3 5 1 . . 4 1 . 2 . 2 . 1 . . . 1 1 . . . 2 . . 3 1 . . . . . . Worker 18 | 1 4 . . . . 1 . . . . 5 . . . . . 1 . . 1 . . . . . 1 . . . 3 1 Builder 15 | . 1 . . . 3 . . . . . 2 . . . . . 1 . . 1 1 . . . . . . . . 6 . Tunneler 14 | 8 1 . . 1 1 1 . . . . 1 . . . . . . . . 1 . . . . . . . . . . . Hauler 11 | . 2 . . . 6 . . . . . 1 . . . . . . . . 1 1 . . . . . . . . . . Recycler 25 | 1 1 . . . 4 3 . . . . 7 . . . . 1 1 . . . 4 . . . . 1 . . . 1 1 Minesweeper 3 | . . . . . . . . . . 1 . 1 . . . . . . . . . . 1 . . . . . . . . Mechanic 2 | . . . . . . . . . . . . . . . . 1 . . . . . . . 1 . . . . . . . Operator 5 | . 3 . . . 1 . . . . . . . . . . . . . . . . . . . . . . . . 1 . Drone 2 | . . . . . . . . . . . . . . . . . . . . . . . . . 2 . . . . . . Watcher 15 | . 1 . . . 2 . . . . . 1 . . . . . 1 1 . . 1 . . . . 1 5 . . 2 . Swarmer 54 | . . . . . 10 . . 2 . 4 . . 4 . . . 5 . . . . 4 . . . . 10 . . 10 5 Cutter 3 | . . . . . 3 . . . . . . . . . . . . . . . . . . . . . . . . . . Saboteur 5 | . . . . . . . . . . . . . . . . . . . . . . . . 3 . . 2 . . . . Grunt 87 | . 14 . . . 8 . . 8 . . 1 . 4 . . . 3 . . 7 3 . . 16 . . 8 . . 4 11 Brawler 13 | . . . . . . . . . . . . . . . . . . . . . 1 . . 5 . . 6 . . . 1 Duelist 9 | . . . . . . . . . . . . . . . . . . . . 1 1 . . 3 . . 4 . . . . Protector 5 | . . . . . . . . 1 . . . . . . . . . . . . . . . 2 . . 2 . . . . Sentry 26 | . . . . . 5 3 . 1 . 1 . . . . 1 . 4 . . 1 1 . . . . 1 3 . . 5 . Specialist 8 | . . . . . . . . . . . . . . . . . . . . . 2 . . 1 . . 5 . . . . Hunter 18 | . . . . . . . . 2 . . 3 1 . . . . . . . 1 2 . 2 1 . . . . . 4 2 Programmer 32 | . . . . . . 2 . . . . 1 1 . . . . . . . 1 6 . . . 1 2 10 . . 2 6 Heavy 2 | . . . . . 1 . . . . . . . . . . . . . . . 1 . . . . . . . . . . Behemoth 8 | . . . . . . . . . . 1 . . . . . . 1 . . . 2 . 1 . . . 1 . . 2 . Cetus Guard 4 | . . . . . . . . . . . . . . . . . . 4 . . . . . . . . . . . . . M Guard 2 | . . . . . . . . . . . . . . . . . . . . . . . . . . . . . . . 2 Enhanced Grunt 4 | . . . . . . . . . . . . . . 4 . . . . . . . . . . . . . . . . . Tracker 3 | . . . . . . . . . . . . . . . . . . . . . 1 . . . . . . . . 2 . Combat Programmer 5 | . . . . . . . . . . . . . . . . . . . . . 1 . . . . . . . . 2 2 Striker 1 | . . . . . . . . . . . . . . . . . . . . . . . . 1 . . . . . . . Executioner 1 | . . . . . . . . . . . . . . . . . . . . . . . . 1 . . . . . . . Decomposer 4 | . . . . . . . . . . 3 . . 1 . . . . . . . . . . . . . . . . . . Packrat 3 | . . . . . . . 3 . . . . . . . . . . . . . . . . . . . . . . . . Samaritan 3 | . . . . . . . . . . . . 1 . . . . . . . . . 2 . . . . . . . . . Assembled 1 | . . 1 . . . . . . . . . . . . . . . . . . . . . . . . . . . . . Thug 2 | . . . . . . . . . . . . . . . . . 1 . . . . . . 1 . . . . . . . Butcher 1 | . . . . . . . . . . . . . . . . . 1 . . . . . . . . . . . . . . Best Kill Streak 23 | 5 5 2 . 1 10 3 . 6 . 3 11 2 4 2 1 1 5 4 . 6 4 4 2 23 2 3 7 . . 21 14 Combat Bots Only 23 | . 5 1 . . 6 1 . 6 . 3 2 2 4 2 1 . 5 4 . 5 4 4 2 23 2 3 7 . . 13 14 Max Kills in Single Turn 7 | 1 2 1 . 1 4 2 1 4 . 2 5 1 3 1 1 1 4 2 . 2 3 2 1 5 2 1 4 . . 3 7 Gunslinging 1 | . . . . . . . . . . . . . . . . . . . . . 1 . . . . . . . . . . Exploded 5 | . . . . . 4 1 . 4 . 2 1 . 3 . . . 4 . . 1 1 2 . 5 2 . 4 . . 3 4 Melee 1 | . . . . . . . . . . . . . . . . . . . . . 1 . . . . . . . . . . Uniques/NPCs Destroyed 2 | . . . . . . . . . . . . . . 1 . . . . . . . . . . . . . . . . 1 Data Miner (-6/Data Miner) MAIN.C Shell (-1/Command) Combat | -11 -10 -10 -10 -9 -8 -7 -7 -7 -7 -6 -6 -6 -6 -6 -5 -5 -5 -5 -5 -5 -4 -4 -4 -4 -3 -3 -3 -3 -2 -1 -1 -------- Run | Yrd Mat Min Exi Min Mat Fac Low Low Zio Pro Fac Low Low Dat Pro Fac Ext Cet Arc Hub Fac Upp Upp War Pro Res Arm Lab Res Acc Com Hostile Shots Fired 1629 | . 79 6 . . 115 69 10 29 . 31 38 35 34 34 8 . 57 4 . 44 166 6 37 72 7 4 323 . . 134 287 Missed 454 | . 13 . . . 27 25 3 9 . 8 15 8 11 4 2 . 19 . . 18 43 3 20 23 3 2 93 . . 37 68 Hits 1175 | . 66 6 . . 88 44 7 20 . 23 23 27 23 30 6 . 38 4 . 26 123 3 17 49 4 2 230 . . 97 219 Melee 7 | . . 2 . . . . . . . . . . . . . . . . . 1 . . . . . . 3 . . . 1 Projectile 1168 | . 66 4 . . 88 44 7 20 . 23 23 27 23 30 6 . 38 4 . 25 123 3 17 49 4 2 227 . . 97 218 AOE 8 | . . 2 . . . . . . . . . . . . . . . . . . 2 . . . . . . . . . 4 Critical Strikes 52 | . . . . . 5 . . 1 . 2 . . 2 . . . 8 . . 2 5 . . 4 . . 12 . . 3 8 Actively Blocked 9 | . . . . . . . . . . . . . . . . . . . . . . . . . . . . . . 2 7 Part Disruptions 10 | . . . . . . . . . . . . . . . . . . . . . 2 . . . . . 1 . . . 7 Damage Taken 25500 | . 803 186 . . 1465 597 . 394 . 442 335 271 348 1356 122 132 1080 94 . 605 3208 41 302 1165 137 31 3921 . . 1741 6724 Core 3196 | . 138 76 . . 178 139 . 54 . 49 32 37 14 185 15 . 59 29 . 19 162 . 34 171 15 . 190 . . 115 1485 Absorbed by Shields 1940 | . . . . . 71 197 . 142 . 117 98 103 128 62 10 46 . 26 . . . . 55 338 18 12 517 . . . . Reduced by Siege Mode 445 | . . . . . . . . . . . . . . . . . . . . . . . . . . . 69 . . . 376 Redirected to Shielding 16 | . . . . . . . . . . . . . . . . . . . . . 16 . . . . . . . . . . Ignored by Resistances 1728 | . . . . . . . . . . . . . . . . . 43 . . . . . . . . 5 436 . . 499 745 Regen/Repaired (Parts) 1550 | . . . . . . . . . 1 . . . . . . . . . . . . . . 505 . . 972 . . . 72 Core Remaining (%) 72 | 100 . . . 14 67 . . . . 65 . . . . 66 . . . . 89 . . . . 66 . . 85 100 . . Volleys Fired 919 | 20 80 12 . 1 79 24 15 64 8 14 32 6 5 24 12 . 69 4 . 31 86 6 9 32 6 15 118 . 1 69 77 Largest 4 | 2 2 2 . 2 3 3 1 3 1 2 3 2 1 2 2 . 2 1 . 2 3 1 1 3 2 3 3 . 1 3 4 Hottest 305 | 40 70 70 . 70 167 125 40 130 . 80 128 80 39 124 124 . 138 250 . 138 266 90 90 211 160 203 305 . 113 305 252 Shots Fired 1640 | 40 157 24 . 2 204 60 15 91 8 16 73 8 6 46 16 . 101 4 . 56 163 5 9 52 11 27 217 . 1 94 134 Gun 517 | 40 157 24 . 2 37 30 . 12 . . 10 . . 22 3 . . . . 6 136 . . 18 . . . . . . 20 Cannon 955 | . . . . . 159 30 15 69 . 5 53 4 1 24 11 . 90 4 . 42 18 3 3 17 10 26 186 . 1 77 107 Launcher 146 | . . . . . 8 . . 10 . 11 10 4 2 . 2 . 7 . . 8 9 2 6 17 1 . 26 . . 17 6 Special 22 | . . . . . . . . . 8 . . . 3 . . . 4 . . . . . . . . 1 5 . . . 1 Kinetic 819 | 40 149 12 . 1 169 42 15 79 . 5 63 4 1 . 6 . 43 . . 23 19 . . 17 10 12 83 . . . 26 Thermal 442 | . 8 12 . 1 27 . . . . . . . . . . . 32 4 . 25 135 3 3 . . 14 63 . 1 62 52 Explosive 68 | . . . . . 5 . . 5 8 4 . . 5 . . . 11 . . 2 5 2 1 17 1 . 2 . . . . Electromagnetic 238 | . . . . . 3 18 . 7 . 7 10 4 . 46 10 . 15 . . 6 4 . 5 . . . 64 . . 26 13 Entropic 66 | . . . . . . . . . . . . . . . . . . . . . . . . 18 . . . . . 6 42 Robot Hit Streak 57 | 9 11 5 . 1 12 13 . 8 . 2 6 5 3 13 19 . 14 7 . 10 13 . 1 7 2 5 20 . . 14 57 Robot Miss Streak 9 | 2 3 5 . . 9 7 . 2 . 4 4 3 . 1 2 . 3 . . 3 7 1 1 3 1 3 3 . . 5 4 Penetration Max 1 | . . . . . . . . . . . . . . . . . 1 . . . 1 . . . . . . . . . 1 Secondary Targets 7 | . 3 . . . 1 . . . . . . . . . . . . . . . 3 . . . . . . . . . . Max Gunslinging Chain 1 | . 1 . . . 1 . . . . . . . . . . . . . . . 1 . . . . . . . . . . Shots Hit Robots 932 | 24 99 14 . 1 113 31 4 30 . 15 44 5 10 42 7 2 57 1 . 28 89 3 4 28 6 15 123 . . 30 107 Core Hits 900 | 11 48 5 . 1 79 22 2 28 . 16 31 4 12 21 3 . 41 10 . 26 46 6 2 117 2 8 122 . . 93 144 Critical Kills 8 | . . . . . . . . . . . 1 . . . . . 2 . . 3 . . . . . . . . . 2 . Critical Parts Destroyed 28 | . 2 . . . . . . . . . 5 . . . 1 . 13 . . 4 2 . . . . . . . . . 1 Critical Strikes 74 | . 4 . . . 4 . . 2 . . 9 . 2 1 1 . 22 . . 7 9 . . 1 . 3 5 . . 2 2 Burn 6 | . 2 . . . . . . . . . . . . . . . . . . . 4 . . . . . . . . . . Meltdown 2 | . . . . . . . . . . . . . . . . . . . . . . . . . . . . . . 2 . Destroy 39 | . 2 . . . . . . . . . 6 . . . 1 . 20 . . 7 2 . . . . . . . . . 1 Blast 19 | . . . . . 4 . . 2 . . 3 . . . . . . . . . 1 . . 1 . 2 5 . . . 1 Corrupt 1 | . . . . . . . . . . . . . . 1 . . . . . . . . . . . . . . . . . Sever 7 | . . . . . . . . . . . . . 2 . . . 2 . . . 2 . . . . 1 . . . . . Melee Attacks 192 | . . . . . . 7 5 12 9 18 10 4 11 8 10 5 2 . . 4 22 5 4 . 1 16 20 . 1 17 1 Impact 7 | . . . . . . . . . 7 . . . . . . . . . . . . . . . . . . . . . . Slashing 170 | . . . . . . 7 5 12 2 12 10 4 11 8 10 5 2 . . 4 19 5 3 . 1 16 18 . 1 15 . Piercing 15 | . . . . . . . . . . 6 . . . . . . . . . . 3 . 1 . . . 2 . . 2 1 Sneak Attacks 37 | . . . . . . 2 3 1 . 4 5 3 3 1 . 2 1 . . . 5 3 2 . . 2 . . . . . Combat Hostiles . | . . . . . . . . . . . . . . . . . . . . . . . . . . . . . . . . Follow-up Attacks . | . . . . . . . . . . . . . . . . . . . . . . . . . . . . . . . . Damage Inflicted 60924 | 299 1316 150 . 13 3176 857 303 1788 . 1084 2431 520 1619 611 176 196 3875 469 . 1895 4697 530 448 9753 369 763 7949 . . 4111 11526 Guns 6334 | 299 1315 150 . 13 331 372 . 165 . . 116 . . 143 24 . . . . 77 2069 . . 605 . . . . . . 655 Cannons 20400 | . . . . . 2014 218 . 466 . 54 824 69 . 378 104 . 2012 67 . 872 409 . . 173 234 533 4943 . . 1153 5877 Explosions 29806 | . . . . . 817 61 . 1069 . 356 1060 212 1044 . 48 . 1628 402 . 946 1567 279 249 8975 135 . 3006 . . 2958 4994 Melee 4149 | . . . . . . 206 303 88 . 674 431 239 480 90 . 196 110 . . . 652 251 199 . . 230 . . . . . Ramming 15 | . 1 . . . 14 . . . . . . . . . . . . . . . . . . . . . . . . . . Kinetic 11166 | 299 1225 62 . . 2062 321 . 603 . 54 940 69 . . 25 . 1006 . . 260 394 . . 173 234 365 2241 . . . 833 Thermal 16190 | . 90 88 . 13 401 61 . . . . 169 57 . . . . 754 469 . 782 2445 . . . . 168 1949 . . 2106 6638 Explosive 15821 | . . . . . 595 . . 994 . 215 215 . 1044 . . . 1529 . . 454 890 279 33 8975 135 . 463 . . . . Electromagnetic 9587 | . . . . . 104 269 . 103 . 141 676 155 . 521 151 . 351 . . 399 316 . 216 . . . 3296 . . 2005 884 Impact . | . . . . . . . . . . . . . . . . . . . . . . . . . . . . . . . . Slashing 4274 | . . . . . . 206 303 88 . 579 431 239 575 90 . 196 235 . . . 652 251 199 . . 230 . . . . . Piercing 95 | . . . . . . . . . . 95 . . . . . . . . . . . . . . . . . . . . . Entropic 3776 | . . . . . . . . . . . . . . . . . . . . . . . . 605 . . . . . . 3171 Highest Corruption 49 | . . . . . 4 1 . 1 1 . 2 4 4 4 49 . . . . 4 14 14 . . 1 1 19 19 . 4 20 Average Corruption 5 | . . . . . 3 1 . 1 1 . 1 2 4 4 5 . . . . 1 9 9 . . 1 1 7 19 . 2 7 Corruption Purged 19 | . . . . . 4 1 . . . . . . . . . . . . . . . 14 . . . . . . . . . Corruption Blocked . | . . . . . . . . . . . . . . . . . . . . . . . . . . . . . . . . Effects 185 | . . . . . 14 2 . 7 . . 6 8 10 11 10 . . . . 1 25 19 . . . . 46 1 . 9 16 Message Errors 32 | . . . . . 1 . . 1 . . . 1 1 5 2 . . . . . 2 3 . . . . 11 . . 3 2 Matter Fused 51 | . . . . . 4 1 . 1 . . 3 2 2 2 3 . . . . 1 9 7 . . . . 11 . . 2 3 Heat Flow Errors 17 | . . . . . 1 . . 1 . . . 2 . 2 . . . . . . 3 . . . . . 7 . . 1 . Energy Discharges 18 | . . . . . 1 . . 1 . . 1 1 . 1 3 . . . . . 4 3 . . . . 3 . . . . Parts Rejected 5 | . . . . . 1 . . . . . 1 . . . . . . . . . 2 . . . . . . . . 1 . Parts Fused 4 | . . . . . 1 . . . . . . . 1 . 1 . . . . . . . . . . . 1 . . . . Data Loss (minor) 27 | . . . . . 3 . . 3 . . 1 . 3 1 . . . . . . 2 4 . . . . 6 1 . 1 2 Data Loss (major) 12 | . . . . . . . . . . . . 2 1 . . . . . . . 2 1 . . . . 2 . . . 4 Misfires 6 | . . . . . 1 . . . . . . . 1 . 1 . . . . . . . . . . . . . . 1 2 Alerts 2 | . . . . . . . . . . . . . 1 . . . . . . . . . . . . . 1 . . . . Misdirections 3 | . . . . . . . . . . . . . . . . . . . . . 1 . . . . . . . . . 2 Weapon Failures 8 | . . . . . 1 1 . . . . . . . . . . . . . . . 1 . . . . 4 . . . 1 Overload Shots . | . . . . . . . . . . . . . . . . . . . . . . . . . . . . . . . . Overflow Damage 2222 | . . . . . 45 32 131 57 . 322 116 108 201 . . 116 66 5 . 38 86 72 60 287 75 63 237 . . 37 68 Projectiles 421 | . . . . . 21 . . . . . 19 . . . . . 46 . . 14 13 . . 28 12 . 193 . . 28 47 Explosions 526 | . . . . . 24 . . 9 . . 47 . . . . . 20 5 . 24 1 . . 259 63 . 44 . . 9 21 Melee 1275 | . . . . . . 32 131 48 . 322 50 108 201 . . 116 . . . . 72 72 60 . . 63 . . . . . Knockbacks 66 | . . . . . 17 1 . 3 . 1 10 . . . . . 4 . . 1 . . . 1 4 . 22 . . . 2 Impact . | . . . . . . . . . . . . . . . . . . . . . . . . . . . . . . . . Kinetic 64 | . . . . . 17 1 . 3 . 1 10 . . . . . 3 . . 1 . . . 1 4 . 21 . . . 2 Secondary 2 | . . . . . . . . . . . . . . . . . 1 . . . . . . . . . 1 . . . . Self-Inflicted Damage 1203 | . . . . . 113 44 . 107 . 7 21 40 49 . . . 30 . . 116 71 . . 92 63 . 102 . . 158 190 Shots 68 | . . . . . 5 1 . 4 . 1 1 2 1 . . . 1 . . 2 4 . . 2 1 . 14 . . 10 19 Rammed 3 | . 2 . . . 1 . . . . . . . . . . . . . . . . . . . . . . . . . . Targets Rammed 3 | . 2 . . . 1 . . . . . . . . . . . . . . . . . . . . . . . . . . Kicked . | . . . . . . . . . . . . . . . . . . . . . . . . . . . . . . . . Crushed . | . . . . . . . . . . . . . . . . . . . . . . . . . . . . . . . . Highest Temperature 608 | . 64 137 . 32 496 208 . 272 . . 24 196 2 87 81 . 27 348 . 99 578 4 12 251 33 . 608 . . 309 469 Average Temperature 95 | . 9 65 . 20 129 81 . 98 . . 9 105 2 30 45 . 17 134 . 51 149 2 6 57 22 . 77 . . 89 118 Received Heat Transfer 3105 | . 447 . . . 359 72 . 80 . 48 36 . 142 . 30 . 180 . . 171 219 . 9 98 . . 845 . . 36 333 Effects 12 | . . . . . 4 . . . . . . . . . . . . . . . 5 . . . . . 3 . . . . Shutdowns 1 | . . . . . . . . . . . . . . . . . . . . . . . . . . . 1 . . . . Energy Bleed 6 | . . . . . 4 . . . . . . . . . . . . . . . 2 . . . . . . . . . . Interference 2 | . . . . . . . . . . . . . . . . . . . . . . . . . . . 2 . . . . Damage (minor) 1 | . . . . . . . . . . . . . . . . . . . . . 1 . . . . . . . . . . Damage (major) 2 | . . . . . . . . . . . . . . . . . . . . . 2 . . . . . . . . . . Siege Activations 3 | . . . . . . . . . . . . . . . . . . . . . . . . . . 1 1 . . . 1 Total Turns 146 | . . . . . . . . . . . . . . . . . . . . . . . . . . 19 30 . . . 97 Longest Duration 97 | . . . . . . . . . . . . . . . . . . . . . . . . . . 19 30 . . . 97 Martial Activations . | . . . . . . . . . . . . . . . . . . . . . . . . . . . . . . . . Shielding Activations . | . . . . . . . . . . . . . . . . . . . . . . . . . . . . . . . . Robots Disrupted 3 | . . . . . . . . . . . . . . . . . . . . . . . . . . . 1 . . 2 . Combat Hostiles 3 | . . . . . . . . . . . . . . . . . . . . . . . . . . . 1 . . 2 . Robots Corrupted 36 | . . . . . . . . . . 1 . 1 . 4 1 . 1 . . 1 2 . 2 . . . 13 . . 9 1 Combat Hostiles 35 | . . . . . . . . . . 1 . 1 . 4 1 . 1 . . 1 2 . 2 . . . 13 . . 8 1 Parts Fried 74 | . . . . . . 2 . 1 . . 3 3 . 8 1 . . . . 2 2 . 3 . . . 27 . . 17 5 Impact Corruptions . | . . . . . . . . . . . . . . . . . . . . . . . . . . . . . . . . Robots Melted 40 | . . . . . . . . . . . . . . . . . . 5 . . 5 . . . . . 5 . . 11 14 Combat Hostiles 37 | . . . . . . . . . . . . . . . . . . 4 . . 5 . . . . . 5 . . 9 14 Parts Melted 145 | . 2 . . . . . . . . . 1 . . . . . . 8 . . 18 . . . . . 29 . . 29 58 Heat Transferred 35088 | . 407 259 . 37 467 50 . . . . 150 50 . . . . 150 2560 . 50 4505 . . . . 200 3673 . . 7523 15007 Parts Sabotaged 4 | . . . . . . . . . . . . . . . . . . . . 1 . . . . . . . . . . 3 Parts Stolen . | . . . . . . . . . . . . . . . . . . . . . . . . . . . . . . . . Parts Stripped . | . . . . . . . . . . . . . . . . . . . . . . . . . . . . . . . . Power Chain Reactions 18 | . . . . . 2 1 . . . . 2 1 . . . . 1 . . 3 . . . . . . 3 . . 2 3 Alert | -11 -10 -10 -10 -9 -8 -7 -7 -7 -7 -6 -6 -6 -6 -6 -5 -5 -5 -5 -5 -5 -4 -4 -4 -4 -3 -3 -3 -3 -2 -1 -1 ------- Run | Yrd Mat Min Exi Min Mat Fac Low Low Zio Pro Fac Low Low Dat Pro Fac Ext Cet Arc Hub Fac Upp Upp War Pro Res Arm Lab Res Acc Com Maximum Alert Level 4 | . . . . . 1 . . . . . 2 . . . . . 2 1 . 4 2 . . . . . 4 . . 2 3 Low Security (%) 50 | 100 100 100 . 100 78 100 . . . . . . . . . 100 15 8 100 16 15 . . . . 100 9 . 100 35 . Level 1 25 | . . . . . 21 . . . . . 72 . . . . . 67 91 . 7 26 . . . . . 26 . . 28 27 Level 2 17 | . . . . . . . . . . . 27 . . . . . 16 . . 15 57 . . . . . 25 . . 35 66 Level 3 5 | . . . . . . . . . . . . . . . . . . . . 58 . . . . . . 31 . . . 5 Level 4 . | . . . . . . . . . . . . . . . . . . . . 1 . . . . . . 7 . . . . Level 5 . | . . . . . . . . . . . . . . . . . . . . . . . . . . . . . . . . High Security . | . . . . . . . . . . . . . . . . . . . . . . . . . . . . . . . . Max Security . | . . . . . . . . . . . . . . . . . . . . . . . . . . . . . . . . Peak Influence 1277 | 15 123 1 . 5 334 50 . . . . 470 . . . . 12 446 349 192 1277 625 . . . . 78 1126 . 6 691 558 Initial 625 | . 3 1 . . . 33 . . . . 450 . . . . . . 229 75 28 625 . . . . . 34 . . . 423 Average 241 | 2 21 . . . 87 9 . . . . 359 . . . . 1 294 270 135 645 413 . . . . 7 567 . . 313 427 Influence Increases 12368 | 50 437 . . 5 844 243 20 371 . 379 741 45 185 20 20 23 1097 185 197 1715 922 105 85 650 40 154 1790 . 6 1036 1003 Destroy 0b10 Robot/C 6600 | . 280 . . . 540 100 . 300 . 260 100 40 160 20 20 . 500 80 80 620 420 80 60 620 20 60 1020 . . 620 600 Destroy 0b10 Robot/NC 625 | 50 65 . . 5 85 25 5 5 . 25 85 5 5 . . 10 35 5 . 25 35 . 5 15 10 15 35 . . 65 10 Destroy Leader 1104 | . 86 . . . 136 50 . 30 . 30 34 . 20 . . . 46 . . 120 124 10 20 . 10 22 182 . . 124 60 Allied During Kill 970 | . . . . . . . . 6 . 64 . . . . . . 265 85 80 454 . . . . . . 16 . . . . Successful Hack 122 | . 5 . . . . 8 . . . . 16 . . . . 7 20 . . . 6 . . . . . 38 . . 22 . Disable Machine 705 | . . . . . . 45 . . . . 30 . . . . . 75 15 15 165 105 . . . . 15 195 . . 30 15 Destroy Structure 1237 | . 1 . . . 83 15 . . . . 26 . . . . 6 126 . 22 316 172 . . . . 42 214 . 6 160 48 Advance Influence 450 | . . . . . . . . . . . 450 . . . . . . . . . . . . . . . . . . . . Partial Spotted 15 | . . . . . . . . . . . . . . . . . . . . . . . . . . . 15 . . . . Lose Combat Pursuer 540 | . . . . . . . 15 30 . . . . . . . . 30 . . 15 60 15 . 15 . . 75 . . 15 270 Influence Decreases 11552 | 45 438 4 . 5 769 286 52 124 247 379 278 370 257 86 20 23 687 407 303 520 1817 422 150 65 625 88 733 1123 6 374 849 Entered New Map 3706 | . 2 3 . . . 42 13 . 247 . . 172 27 66 . . . 181 113 54 652 142 13 . 585 . 32 1123 . . 239 Time Decay 5581 | 45 304 1 . 5 450 242 39 124 . 301 278 198 230 20 20 23 517 206 130 206 521 280 127 65 40 88 571 . 6 354 190 Lost Part 550 | . 18 . . . 70 2 . . . . . . . . . . 50 . . 20 40 . 10 . . . 50 . . 20 270 Lost Ally 598 | . . . . . . . . . . 78 . . . . . . 120 20 60 240 . . . . . . 80 . . . . Purge Threat 1117 | . 114 . . . 249 . . . . . . . . . . . . . . . 604 . . . . . . . . . 150 Squads Dispatched 69 | . 4 . . . 2 3 . 1 . . 3 . . . . . 1 . . 8 11 . . . . 1 14 . . 17 4 Investigation 7 | . 1 . . . . 1 . . . . . . . . . . 1 . . 3 . . . . . . . . . 1 . Extermination 15 | . . . . . . 2 . . . . 1 . . . . . . . . . 4 . . . . 1 4 . . 2 1 Reinforcement 23 | . 3 . . . 2 . . . . . 2 . . . . . . . . 4 4 . . . . . 3 . . 4 1 Assault 9 | . . . . . . . . 1 . . . . . . . . . . . 1 1 . . . . . 4 . . . 2 Garrison 7 | . . . . . . . . . . . . . . . . . . . . . . . . . . . . . . 7 . Intercept 8 | . . . . . . . . . . . . . . . . . . . . . 2 . . . . . 3 . . 3 . Searches Triggered . | . . . . . . . . . . . . . . . . . . . . . . . . . . . . . . . . Construction Impeded 5 | . . . . . . . . . . . 1 . . . . . . . . 2 . . . . . . . . . 2 . Haulers Reinforced 2 | . . . . . . . . . . . 1 . . . . . . . . . 1 . . . . . . . . . . Active Scanning Responses . | . . . . . . . . . . . . . . . . . . . . . . . . . . . . . . . . Cargo Convoy Interrupts . | . . . . . . . . . . . . . . . . . . . . . . . . . . . . . . . . Stealth | -11 -10 -10 -10 -9 -8 -7 -7 -7 -7 -6 -6 -6 -6 -6 -5 -5 -5 -5 -5 -5 -4 -4 -4 -4 -3 -3 -3 -3 -2 -1 -1 --------- Run | Yrd Mat Min Exi Min Mat Fac Low Low Zio Pro Fac Low Low Dat Pro Fac Ext Cet Arc Hub Fac Upp Upp War Pro Res Arm Lab Res Acc Com Distress Signals 17 | . 4 . . . 2 . . . . . 1 . . . . . 1 1 . . 1 . . . . . 3 . 1 3 . Communications Jammed 7 | . . . . . . . . . . . . . . . . . 1 . . 4 2 . . . . . . . . . . Distress Signals 7 | . . . . . . . . . . . . . . . . . 1 . . 4 2 . . . . . . . . . . Times Spotted 479 | . 26 20 . . 29 11 1 19 . 12 6 3 8 5 2 . 23 4 1 22 27 4 3 61 1 11 79 . . 37 64 Peak Tracking Total 34 | . 4 20 . . 7 2 1 8 . 4 2 3 4 2 1 . 5 5 1 6 5 4 2 17 1 7 9 . . 7 34 Tactical Retreats 18 | . . . . . . . 1 2 . . . . . . . . 2 . . 1 2 1 . 1 . . 3 . . 1 4 Traps | -11 -10 -10 -10 -9 -8 -7 -7 -7 -7 -6 -6 -6 -6 -6 -5 -5 -5 -5 -5 -5 -4 -4 -4 -4 -3 -3 -3 -3 -2 -1 -1 ------- Run | Yrd Mat Min Exi Min Mat Fac Low Low Zio Pro Fac Low Low Dat Pro Fac Ext Cet Arc Hub Fac Upp Upp War Pro Res Arm Lab Res Acc Com Traps Triggered 19 | . 2 . . . 2 1 . . . . . . . . 1 1 7 . . . 1 . . . . . 3 . . 1 . Indirectly 4 | . . . . . . . . . . . . . . . 1 . . . . . . . . . . . 3 . . . . Trap Hack Attempts . | . . . . . . . . . . . . . . . . . . . . . . . . . . . . . . . . Triggered . | . . . . . . . . . . . . . . . . . . . . . . . . . . . . . . . . Disarmed . | . . . . . . . . . . . . . . . . . . . . . . . . . . . . . . . . Reprogrammed . | . . . . . . . . . . . . . . . . . . . . . . . . . . . . . . . . Reused . | . . . . . . . . . . . . . . . . . . . . . . . . . . . . . . . . Traps Extracted . | . . . . . . . . . . . . . . . . . . . . . . . . . . . . . . . . Installed 1 | . . . . . . . . . . . . 1 . . . . . . . . . . . . . . . . . . . Triggered . | . . . . . . . . . . . . . . . . . . . . . . . . . . . . . . . . Machines | -11 -10 -10 -10 -9 -8 -7 -7 -7 -7 -6 -6 -6 -6 -6 -5 -5 -5 -5 -5 -5 -4 -4 -4 -4 -3 -3 -3 -3 -2 -1 -1 ---------- Run | Yrd Mat Min Exi Min Mat Fac Low Low Zio Pro Fac Low Low Dat Pro Fac Ext Cet Arc Hub Fac Upp Upp War Pro Res Arm Lab Res Acc Com Machines Disabled 50 | . . . . . . 3 . 2 . . 2 . . . . . 6 1 1 11 7 . . . . 1 13 . . 2 1 Max in Single Turn 3 | . . . . . . 1 . 2 . . 2 . . . . . 1 1 . 3 2 . . . . 1 2 . . 1 1 Garrison Access 2 | . . . . . . . . . . . . . . . . . . . . . 1 . . . . . . . . 1 . Network Hub 1 | . . . . . . . . . . . . . . . . . . . . 1 . . . . . . . . . . . Machines Repaired . | . . . . . . . . . . . . . . . . . . . . . . . . . . . . . . . . Machines Dismantled . | . . . . . . . . . . . . . . . . . . . . . . . . . . . . . . . . Machines Sabotaged . | . . . . . . . . . . . . . . . . . . . . . . . . . . . . . . . . Overloaded Fab Kills . | . . . . . . . . . . . . . . . . . . . . . . . . . . . . . . . . Hacking | -11 -10 -10 -10 -9 -8 -7 -7 -7 -7 -6 -6 -6 -6 -6 -5 -5 -5 -5 -5 -5 -4 -4 -4 -4 -3 -3 -3 -3 -2 -1 -1 --------- Run | Yrd Mat Min Exi Min Mat Fac Low Low Zio Pro Fac Low Low Dat Pro Fac Ext Cet Arc Hub Fac Upp Upp War Pro Res Arm Lab Res Acc Com Machines Accessed 52 | . 5 . 2 . 3 1 1 . . . 2 . . 4 . 3 7 1 . 3 4 . . 2 . 1 5 . 1 5 2 Terminals 35 | . 3 . . . 3 1 . . . . 2 . . . . 1 7 1 . 3 2 . . . . 1 4 . 1 4 2 Fabricators . | . . . . . . . . . . . . . . . . . . . . . . . . . . . . . . . . Repair Stations 2 | . 1 . . . . . . . . . . . . . . . . . . . . . . . . . 1 . . . . Recycling Units 2 | . 1 . . . . . . . . . . . . . . 1 . . . . . . . . . . . . . . . Scanalyzers 1 | . . . . . . . . . . . . . . . . 1 . . . . . . . . . . . . . . . Garrison Access 3 | . . . . . . . . . . . . . . . . . . . . . 2 . . . . . . . . 1 . Total Hacks 139 | . 14 . 2 . 6 3 1 . . . 3 . . 31 . 7 11 2 . 6 15 . . 6 . 4 15 . 1 9 3 Successful 82 | . 5 . 2 . 3 1 1 . . . 1 . . 31 . 5 5 . . 1 7 . . 6 . 2 6 . . 4 2 Failed 57 | . 9 . . . 3 2 . . . . 2 . . . . 2 6 2 . 5 8 . . . . 2 9 . 1 5 1 Catastrophic 16 | . 1 . . . . 1 . . . . . . . . . . 3 . . 2 4 . . . . 1 2 . 1 . 1 Database Lockouts . | . . . . . . . . . . . . . . . . . . . . . . . . . . . . . . . . Manual 40 | . 4 . 1 . 2 3 . . . . . . . . . . 2 1 . 6 13 . . 1 . 4 . . 1 . 2 Terminals 80 | . 8 . . . 6 3 . . . . 3 . . . . 3 11 2 . 6 13 . . . . 4 10 . 1 7 3 Fabricators . | . . . . . . . . . . . . . . . . . . . . . . . . . . . . . . . . Repair Stations 7 | . 2 . . . . . . . . . . . . . . . . . . . . . . . . . 5 . . . . Recycling Units 5 | . 4 . . . . . . . . . . . . . . 1 . . . . . . . . . . . . . . . Scanalyzers 3 | . . . . . . . . . . . . . . . . 3 . . . . . . . . . . . . . . . Garrison Access 4 | . . . . . . . . . . . . . . . . . . . . . 2 . . . . . . . . 2 . Terminal Hacks 65 | . 2 . 2 . 3 1 1 . . . 1 . . 31 . 1 4 . . . 6 . . 6 . . 2 . . 3 2 Record 12 | . . . 1 . . . . . . . . . . 11 . . . . . . . . . . . . . . . . . Part Schematic 13 | . . . . . . . . . . . . . . 13 . . . . . . . . . . . . . . . . . Robot Schematic 4 | . . . . . . . . . . . . . . 4 . . . . . . . . . . . . . . . . . Prototype ID Bank 8 | . . . . . . . . . . . . . . 3 . . . . . . . . . 5 . . . . . . . Open Door 9 | . . . . . . . 1 . . . . . . . . . 4 . . . . . . 1 . . . . . 2 1 Branch Access Points 3 | . . . . . . 1 . . . . 1 . . . . . . . . . 1 . . . . . . . . . . Unreport Threat 9 | . 1 . . . 2 . . . . . . . . . . . . . . . 5 . . . . . . . . . 1 Locate Traps 1 | . . . . . . . . . . . . . . . . . . . . . . . . . . . 1 . . . . Hauler Manifests 2 | . 1 . . . 1 . . . . . . . . . . . . . . . . . . . . . . . . . . Registered Components 1 | . . . . . . . . . . . . . . . . 1 . . . . . . . . . . . . . . . Zone Layout 2 | . . . . . . . . . . . . . . . . . . . . . . . . . . . 1 . . 1 . Proto ID Catalog 1 | . . . 1 . . . . . . . . . . . . . . . . . . . . . . . . . . . . Fabricator Hacks . | . . . . . . . . . . . . . . . . . . . . . . . . . . . . . . . . Repair Station Hacks 5 | . 1 . . . . . . . . . . . . . . . . . . . . . . . . . 4 . . . . Scan Component 3 | . 1 . . . . . . . . . . . . . . . . . . . . . . . . . 2 . . . . Repair 2 | . . . . . . . . . . . . . . . . . . . . . . . . . . . 2 . . . . Recycling Unit Hacks 2 | . 1 . . . . . . . . . . . . . . 1 . . . . . . . . . . . . . . . Retrieve Components 2 | . 1 . . . . . . . . . . . . . . 1 . . . . . . . . . . . . . . . Scanalyzer 3 | . . . . . . . . . . . . . . . . 3 . . . . . . . . . . . . . . . Insert Component 3 | . . . . . . . . . . . . . . . . 3 . . . . . . . . . . . . . . . Garrison Access Hacks 2 | . . . . . . . . . . . . . . . . . . . . . 1 . . . . . . . . 1 . Seal Access 2 | . . . . . . . . . . . . . . . . . . . . . 1 . . . . . . . . 1 . Unauthorized Hacks 5 | . 1 . . . . . . . . . . . . . . . 1 . . 1 . . . . . 2 . . . . . Terminals 5 | . 1 . . . . . . . . . . . . . . . 1 . . 1 . . . . . 2 . . . . . Assimilate 2 | . 1 . . . . . . . . . . . . . . . . . . . . . . . . 1 . . . . . Botnet 2 | . . . . . . . . . . . . . . . . . 1 . . . . . . . . 1 . . . . . Sabotage 1 | . . . . . . . . . . . . . . . . . . . . 1 . . . . . . . . . . . Fabricators . | . . . . . . . . . . . . . . . . . . . . . . . . . . . . . . . . Repair Stations . | . . . . . . . . . . . . . . . . . . . . . . . . . . . . . . . . Recycling Units . | . . . . . . . . . . . . . . . . . . . . . . . . . . . . . . . . Scanalyzers . | . . . . . . . . . . . . . . . . . . . . . . . . . . . . . . . . Garrison Access . | . . . . . . . . . . . . . . . . . . . . . . . . . . . . . . . . Data Cores Recovered 2 | . . . . . 1 . . . . . . . . . . . . . . . . . . . . . . . . 1 . Used . | . . . . . . . . . . . . . . . . . . . . . . . . . . . . . . . . Hacking Detections 32 | . 5 . . . 3 1 . . . . 1 . . . . 1 4 2 . 3 3 . . . . 1 4 . 1 2 1 Full Trace Events 5 | . 1 . . . . 1 . . . . . . . . . . 1 . . 2 . . . . . . . . . . . Feedback Events 1 | . . . . . . . . . . . . . . . . . . . . 1 . . . . . . . . . . . Corruption 1 | . . . . . . . . . . . . . . . . . . . . 1 . . . . . . . . . . . Feedback Blocked . | . . . . . . . . . . . . . . . . . . . . . . . . . . . . . . . . Robot Schematics Acquired 7 | . . . . . . . . . 3 . . . . 4 . . . . . . . . . . . . . . . . . Robots Built . | . . . . . . . . . . . . . . . . . . . . . . . . . . . . . . . . Authchips . | . . . . . . . . . . . . . . . . . . . . . . . . . . . . . . . . Time . | . . . . . . . . . . . . . . . . . . . . . . . . . . . . . . . . Total Robot Build Rating . | . . . . . . . . . . . . . . . . . . . . . . . . . . . . . . . . Part Schematics Acquired 28 | . . . . . . . . . 15 . . . . 13 . . . . . . . . . . . . . . . . . Parts Built . | . . . . . . . . . . . . . . . . . . . . . . . . . . . . . . . . Authchips . | . . . . . . . . . . . . . . . . . . . . . . . . . . . . . . . . Time . | . . . . . . . . . . . . . . . . . . . . . . . . . . . . . . . . Total Part Build Rating . | . . . . . . . . . . . . . . . . . . . . . . . . . . . . . . . . Parts Repaired 2 | . . . . . . . . . . . . . . . . . . . . . . . . . . . 2 . . . . Time 53 | . . . . . . . . . . . . . . . . . . . . . . . . . . . 53 . . . . Parts Recycled . | . . . . . . . . . . . . . . . . . . . . . . . . . . . . . . . . Recycled Matter . | . . . . . . . . . . . . . . . . . . . . . . . . . . . . . . . . Retrieved Matter . | . . . . . . . . . . . . . . . . . . . . . . . . . . . . . . . . Retrieved Components 4 | . 2 . . . . . . . . . . . . . . 2 . . . . . . . . . . . . . . . Parts Scanalyzed . | . . . . . . . . . . . . . . . . . . . . . . . . . . . . . . . . Part Schematics Acquired . | . . . . . . . . . . . . . . . . . . . . . . . . . . . . . . . . Parts Damaged . | . . . . . . . . . . . . . . . . . . . . . . . . . . . . . . . . Bothacking | -11 -10 -10 -10 -9 -8 -7 -7 -7 -7 -6 -6 -6 -6 -6 -5 -5 -5 -5 -5 -5 -4 -4 -4 -4 -3 -3 -3 -3 -2 -1 -1 ------------ Run | Yrd Mat Min Exi Min Mat Fac Low Low Zio Pro Fac Low Low Dat Pro Fac Ext Cet Arc Hub Fac Upp Upp War Pro Res Arm Lab Res Acc Com Used RIF Installer . | . . . . . . . . . . . . . . . . . . . . . . . . . . . . . . . . Robots Hacked 2 | . . . . . . . . . . . . . . . . . . . . . . . . . . . 1 . . . 1 Non-combat . | . . . . . . . . . . . . . . . . . . . . . . . . . . . . . . . . Combat 1 | . . . . . . . . . . . . . . . . . . . . . . . . . . . 1 . . . . Robot Hacks Applied 1 | . . . . . . . . . . . . . . . . . . . . . . . . . . . 1 . . . . parse_system 1 | . . . . . . . . . . . . . . . . . . . . . . . . . . . 1 . . . . Manual 1 | . . . . . . . . . . . . . . . . . . . . . . . . . . . . . . . 1 Relay Couplers Released . | . . . . . . . . . . . . . . . . . . . . . . . . . . . . . . . . Fabnet Peak Effective % . | . . . . . . . . . . . . . . . . . . . . . . . . . . . . . . . . Robots Rewired 20 | . . . . . . . . 2 . . . . . . . . 14 . . . . . . . . . 4 . . . . Allies Hacked . | . . . . . . . . . . . . . . . . . . . . . . . . . . . . . . . . Hacks Repelled . | . . . . . . . . . . . . . . . . . . . . . . . . . . . . . . . . Allies | -11 -10 -10 -10 -9 -8 -7 -7 -7 -7 -6 -6 -6 -6 -6 -5 -5 -5 -5 -5 -5 -4 -4 -4 -4 -3 -3 -3 -3 -2 -1 -1 -------- Run | Yrd Mat Min Exi Min Mat Fac Low Low Zio Pro Fac Low Low Dat Pro Fac Ext Cet Arc Hub Fac Upp Upp War Pro Res Arm Lab Res Acc Com Total Allies 42 | . . . . . . . . 2 4 . . . . . . . 26 5 . . . . . . . 1 4 . . . . Largest Group 19 | . . . . . . . . 2 6 5 . . . . . . 15 19 19 15 . . . . . 1 4 . . . . Highest-Rated Group 996 | . . . . . . . . 48 144 112 . . . . . . 539 996 996 748 . . . . . 45 168 . . . . Highest-Rated Ally 159 | . . . . . . . . 32 32 31 . . . . . . 159 159 159 96 . . . . . 45 42 . . . . Total Orders 1 | . . . . . . . . . . . . . . . . . . . . . . . . . . . 1 . . . . STAY 1 | . . . . . . . . . . . . . . . . . . . . . . . . . . . 1 . . . . Ally Attacks 387 | . . . . . . . . 7 . 41 . . . . . . 141 6 25 153 . . . . . . 14 . . . . Total Damage 9049 | . . . . . . . . 166 . 632 . . . . . . 2484 141 852 4346 . . . . . . 428 . . . . Kills 58 | . . . . . . . . 2 . 9 . . . . . . 18 . 4 23 . . . . . . 2 . . . . Allies Corrupted . | . . . . . . . . . . . . . . . . . . . . . . . . . . . . . . . . Allies Melted 1 | . . . . . . . . . . . . . . . . . . . . . . . . . . . 1 . . . . Intel | -11 -10 -10 -10 -9 -8 -7 -7 -7 -7 -6 -6 -6 -6 -6 -5 -5 -5 -5 -5 -5 -4 -4 -4 -4 -3 -3 -3 -3 -2 -1 -1 ------- Run | Yrd Mat Min Exi Min Mat Fac Low Low Zio Pro Fac Low Low Dat Pro Fac Ext Cet Arc Hub Fac Upp Upp War Pro Res Arm Lab Res Acc Com Active Infowar (turns) 23642 | 155 1729 113 307 314 1333 532 748 1558 2600 1118 1 390 498 284 559 82 1671 222 279 438 1584 798 543 1405 785 570 1725 16 187 931 167 Optics 7354 | . . . . . . . . . . . . . . . . . . . . . 415 798 543 1405 785 570 1725 16 187 910 . Sensors 11036 | . . . . . . . 748 1558 2600 1118 1 390 498 284 559 . 1 . . . . 796 517 1194 772 . . . . . . Structural 1748 | . . . . . 1216 532 . . . . . . . . . . . . . . . . . . . . . . . . . Seismic 2735 | 155 1729 113 307 314 117 . . . . . . . . . . . . . . . . . . . . . . . . . . Cloaking 1281 | . . . . . . . . . . . . . . . . . . . . . . . . . . . 162 16 187 749 167 Jamming 3861 | . . . . . . . . . . . . . . . . 82 1671 222 279 438 1169 . . . . . . . . . . Robot Analysis Total 151 | . . . . . . . . . . . . . . 151 . . . . . . . . . . . . . . . . . Derelict Logs Recovered 7 | . . . . . . . 1 1 1 1 . 1 1 . . . . . . . . 1 . . . . . . . . . Drone Launches . | . . . . . . . . . . . . . . . . . . . . . . . . . . . . . . . . Drone Recoveries . | . . . . . . . . . . . . . . . . . . . . . . . . . . . . . . . . Exploration | -11 -10 -10 -10 -9 -8 -7 -7 -7 -7 -6 -6 -6 -6 -6 -5 -5 -5 -5 -5 -5 -4 -4 -4 -4 -3 -3 -3 -3 -2 -1 -1 ------------- Run | Yrd Mat Min Exi Min Mat Fac Low Low Zio Pro Fac Low Low Dat Pro Fac Ext Cet Arc Hub Fac Upp Upp War Pro Res Arm Lab Res Acc Com Turns Passed 26689 | 258 1760 113 307 314 1842 1105 761 1558 2673 1181 617 409 498 460 576 243 1671 435 279 438 1711 798 543 1405 785 570 1725 16 187 982 469 Spaces Moved 12160 | 124 571 53 217 213 656 596 431 721 1655 666 284 260 319 184 290 162 622 97 81 128 715 339 260 647 279 261 608 10 113 431 167 Core 98 | 11 1 . . . . . . . 79 . . . . . . . . . . . . . . . . . . . . . 7 Treads 5374 | 113 334 . . . 552 80 . . 6 . . . . . . . 179 97 81 128 715 339 260 647 279 261 608 10 113 431 141 Legs . | . . . . . . . . . . . . . . . . . . . . . . . . . . . . . . . . Wheels 6669 | . 236 53 217 213 104 516 431 721 1570 666 284 260 319 184 290 162 443 . . . . . . . . . . . . . . Hover . | . . . . . . . . . . . . . . . . . . . . . . . . . . . . . . . . Flight 19 | . . . . . . . . . . . . . . . . . . . . . . . . . . . . . . . 19 Fastest Speed 35 | 50 140 140 140 140 125 145 160 160 50 160 140 140 140 140 140 140 140 240 240 240 160 165 165 165 165 165 157 157 157 158 35 Average Speed 168 | 150 245 140 140 140 221 162 160 160 154 160 157 140 140 140 140 140 186 240 240 240 161 165 165 165 165 165 172 157 157 158 154 Slowest Speed 480 | 160 480 140 140 140 240 240 160 160 165 160 175 140 140 140 140 140 320 240 240 240 165 165 165 165 165 165 243 157 158 158 241 Overloaded Moves . | . . . . . . . . . . . . . . . . . . . . . . . . . . . . . . . . Propulsion Burnouts . | . . . . . . . . . . . . . . . . . . . . . . . . . . . . . . . . Robots Hopped . | . . . . . . . . . . . . . . . . . . . . . . . . . . . . . . . . Potential Cave-ins 20 | . . . . . . 5 2 2 . . . . . . . . 2 . . . 8 . . . . . . . . 1 . Cave-ins Triggered 2 | . . . . . . 1 . . . . . . . . . . . . . . 1 . . . . . . . . . . Exploration Rate (%) 46 | 6 86 20 61 64 63 18 64 83 83 77 9 47 50 81 44 6 80 61 73 21 33 54 55 86 59 8 52 5 5 14 9 Regions Visited 31 Branch Regions 22 Pre-discovered Areas 31 | . . . 1 . . . . . 1 . . . . 29 . . . . . . . . . . . . . . . . . Known Exits Taken 17 | . . . . . . 1 1 1 1 1 1 . . . . 1 . . . . 1 1 1 1 1 1 1 1 1 1 . Unknown Exits Taken 14 | 1 1 1 1 1 1 . . . . . . 1 1 1 1 . 1 1 1 1 . . . . . . . . . . . Scrap Searched 24 | . . . . 3 . . 2 12 . 1 . 1 . . . . . . . . . 1 1 . 3 . . . . . . Spaces Dug 519 | . . . . . 7 9 10 43 . 35 4 1 18 . 12 3 3 . . 159 45 31 3 6 3 17 73 . 2 30 5 Terrain Destroyed 1324 | . . . . . 98 18 11 79 . 72 29 9 67 . 15 3 88 . . 185 121 48 27 184 45 24 135 . 2 42 22 Melee 90 | . . . . . . 1 1 11 . 2 3 1 4 . 10 3 . . . 4 7 2 1 . 1 12 13 . 1 12 1 Projectile 320 | . . . . . 46 12 10 25 . 2 7 . . . 5 . 20 . . 17 59 3 2 12 5 12 50 . 1 26 6 AOE 914 | . . . . . 52 5 . 43 . 68 19 8 63 . . . 68 . . 164 55 43 24 172 39 . 72 . . 4 15 Terrain Rammed . | . . . . . . . . . . . . . . . . . . . . . . . . . . . . . . . . Walls Destroyed . | . . . . . . . . . . . . . . . . . . . . . . . . . . . . . . . . Machines Disabled . | . . . . . . . . . . . . . . . . . . . . . . . . . . . . . . . . Actions | -11 -10 -10 -10 -9 -8 -7 -7 -7 -7 -6 -6 -6 -6 -6 -5 -5 -5 -5 -5 -5 -4 -4 -4 -4 -3 -3 -3 -3 -2 -1 -1 --------- Run | Yrd Mat Min Exi Min Mat Fac Low Low Zio Pro Fac Low Low Dat Pro Fac Ext Cet Arc Hub Fac Upp Upp War Pro Res Arm Lab Res Acc Com Total 16661 | 152 764 70 220 226 890 687 478 1027 1762 730 380 289 347 328 424 171 1014 296 168 188 1102 560 355 926 590 354 1090 10 121 641 301 Wait 2421 | . 82 4 . 10 62 7 23 171 19 18 36 9 7 85 88 . 130 179 79 16 201 196 71 219 296 50 270 . . 75 18 Move 12127 | 123 570 52 216 212 655 594 430 720 1654 665 283 259 318 183 289 161 621 96 80 127 713 338 259 646 278 260 607 9 112 430 167 Hop . | . . . . . . . . . . . . . . . . . . . . . . . . . . . . . . . . Pick Up 175 | 2 11 2 4 2 28 12 1 3 27 1 2 2 . 10 2 1 6 3 . 1 15 1 2 9 2 2 11 . 3 6 4 Fast Attach 106 | 7 9 . . . 4 6 . . 16 2 3 . . 4 1 2 10 1 1 2 12 2 . 3 1 3 6 . . 7 4 Attach 73 | . 2 . . . 10 . . . 3 1 1 1 . 5 2 . 9 2 . 1 7 . 2 . 3 . 7 . 2 5 10 Detach 9 | . 1 . . . . . . . . . 1 . . . . . 1 . . . 1 . . . . 1 3 . . . 1 Swap 266 | . 3 . . 1 27 15 3 12 4 10 10 5 4 3 16 1 18 6 4 6 22 10 8 5 1 4 34 1 . 22 11 Drop 184 | . 4 . . . 24 21 1 6 22 1 2 2 2 6 4 1 4 5 4 . 22 2 . 12 2 3 14 . 2 10 8 Fire 919 | 20 80 12 . 1 79 24 15 64 8 14 32 6 5 24 12 . 69 4 . 31 86 6 9 32 6 15 118 . 1 69 77 Melee 192 | . . . . . . 7 5 12 9 18 10 4 11 8 10 5 2 . . 4 22 5 4 . 1 16 20 . 1 17 1 Ram . | . . . . . . . . . . . . . . . . . . . . . . . . . . . . . . . . Kick . | . . . . . . . . . . . . . . . . . . . . . . . . . . . . . . . . Crush 3 | . 2 . . . 1 . . . . . . . . . . . . . . . . . . . . . . . . . . Escape Stasis 22 | . . . . . . 1 . . . . . . . . . . 20 . . . 1 . . . . . . . . . . Rewire 163 | . . . . . . . . 39 . . . . . . . . 124 . . . . . . . . . . . . . . Trap 1 | . . . . . . . . . . . . 1 . . . . . . . . . . . . . . . . . . . Miscellaneous . | . . . . . . . . . . . . . . . . . . . . . . . . . . . . . . . . Route ------- -11/Scrapyard -10/Materials (discovered 5 exits: [*Mat x3] / [*Min x2]) -10/Mines -10/Exiles -9/Mines -8/Materials (discovered 3 exits: *Fac x2 / [*Sto]) -7/Factory (discovered 2 exits: *Low x2) -7/Lower Caves -7/Lower Caves (discovered 2 exits: *Fac / *Zio) -7/Zion -6/Proximity Caves -6/Factory (discovered 3 exits: *Fac / *Low x2) -6/Lower Caves -6/Lower Caves (discovered 2 exits: *Fac / *Dat) -6/Data Miner -5/Proximity Caves -5/Factory -5/Extension (discovered 2 exits: *Fac / *Cet) -5/Cetus -5/Archives (discovered 2 exits: *Fac / *Hub) -5/Hub_04(d) -4/Factory (discovered 2 exits: *Upp x2) -4/Upper Caves -4/Upper Caves (discovered 2 exits: *Res / *War) -4/Warlord -3/Proximity Caves -3/Research -3/Armory -3/Lab -2/Research (discovered 2 exits: *Acc / *Tes) -1/Access -1/Command History --------- Turn | Location | Event 4 | -11/Scrapyard | Discovered new exit (range 16) 259 | -11/Scrapyard | Entered Materials 308 | -10/Materials | Build established: Mutant 763 | -10/Materials | Discovered new exit (range 12) 831 | -10/Materials | Discovered new exit (range 6) 1042 | -10/Materials | Discovered new exit (range 8) 1429 | -10/Materials | Discovered new exit (range 13) 1499 | -10/Materials | Core integrity fell below 50% 1783 | -10/Materials | Discovered new exit (range 3) 2019 | -10/Materials | Entered Mines 2020 | -10/Mines | Assembled infested the area 2064 | -10/Mines | Met 8R-AWN 2065 | -10/Mines | Core integrity fell below 20% 2126 | -10/Mines | Discovered new exit (range 5) 2132 | -10/Mines | Entered Exiles 2170 | -10/Exiles | Welcomed by 8R-AWN 2193 | -10/Exiles | Met EX-HEX 2231 | -10/Exiles | Met EX-BIN 2247 | -10/Exiles | Aligned with FarCom system 2249 | -10/Exiles | Given EX-Vault access code 2282 | -10/Exiles | Opened EX-Vault 2292 | -10/Exiles | Found Firepult 2318 | -10/Exiles | Warned to stay clear of 0b10 Research branches 2359 | -10/Exiles | Met EX-DEC 2367 | -10/Exiles | Learned location of Zion (-7) 2428 | -10/Exiles | Discovered new exit (range 10) 2439 | -10/Exiles | Left Exiles lab with Firepult 2439 | -10/Exiles | Entered Mines 2672 | -9/Mines | Discovered new exit (range 16) 2753 | -9/Mines | Entered Materials 2753 | -8/Materials | Evolved 4 slots: Propulsion x2, Utility x1, Weapon x1 3081 | -8/Materials | Lost 4 parts (4n) 3207 | -8/Materials | Discovered new exit (range 15) 3370 | -8/Materials | Discovered new exit (range 15) 4100 | -8/Materials | Build established: Scavenger-Skirmisher 4496 | -8/Materials | Discovered new exit (range 10) 4595 | -8/Materials | Entered Factory 4595 | -7/Factory | Evolved 2 slots: Utility x2 5311 | -7/Factory | Build established: Tank 5394 | -7/Factory | Identified exit to Lower Caves 5482 | -7/Factory | Crushed by falling debris 5700 | -7/Factory | Entered Lower Caves 5752 | -7/Lower Caves | Spotted B-75 Beast 5858 | -7/Lower Caves | Found DCF Scrap (12 items) 5924 | -7/Lower Caves | Build established: Mutant 6217 | -7/Lower Caves | Encountered a Warlord checkpoint 6410 | -7/Lower Caves | Discovered new exit (range 14) 6438 | -7/Lower Caves | Identified exit to Lower Caves 6450 | -7/Lower Caves | Learned Factory terminal intel 6461 | -7/Lower Caves | Entered another Lower Caves area 6558 | -7/Lower Caves | Discovered new exit (range 5) 6562 | -7/Lower Caves | Identified exit to Factory 6828 | -7/Lower Caves | Learned Factory emergency access door positions 7451 | -7/Lower Caves | Spotted B-75 Beast 7787 | -7/Lower Caves | Attracted the attention of an 0b10 outpost 7995 | -7/Lower Caves | Discovered new exit (range 8) 8006 | -7/Lower Caves | Identified exit to Zion 8019 | -7/Lower Caves | Entered Zion 8019 | -7/Zion | Accompanied by 2 allies 8079 | -7/Zion | System corruption cleaned by Quarantine Array 8117 | -7/Zion | Found Prototype Special Weapon 8117 | -7/Zion | Identified RU-N14's Throwing Claymores 8121 | -7/Zion | Found RU-N14's Throwing Claymores 8124 | -7/Zion | Found RU-N14's Throwing Claymores 8174 | -7/Zion | Gained Derelict followers 8257 | -7/Zion | Discovered new exit (range 15) 8634 | -7/Zion | Found Prototype Device 8634 | -7/Zion | Identified Bomb Factory No. 2 8926 | -7/Zion | Given the Hacking Drone Bay 8956 | -7/Zion | Learned location of 1 exit from Proximity Caves 9147 | -7/Zion | Found CR-A16's Pointy Stick 9577 | -7/Zion | Found RU-N14's Throwing Claymores 10043 | -7/Zion | Rebuked by Imprinter 10670 | -7/Zion | Identified exit to Proximity Caves 10692 | -7/Zion | Entered Proximity Caves 10692 | -6/Proximity Caves | Accompanied by 5 allies 10695 | -6/Proximity Caves | Spotter reported a threat 10701 | -6/Proximity Caves | Spotter reported a threat 10802 | -6/Proximity Caves | Spotter reported a threat 11261 | -6/Proximity Caves | Attracted the attention of an 0b10 checkpoint 11297 | -6/Proximity Caves | Learned Factory emergency access door positions 11322 | -6/Proximity Caves | Spotted B-75 Beast 11353 | -6/Proximity Caves | Revealed the true nature of CR-A16's Pointy Stick 11356 | -6/Proximity Caves | Destroyed B-75 Beast 11873 | -6/Proximity Caves | Entered Factory 11873 | -6/Factory | Evolved 2 slots: Power x1, Utility x1 11875 | -6/Factory | Loaded intel: 26 terminal locations 11938 | -6/Factory | Discovered new exit (range 10) 12222 | -6/Factory | Identified exit to Lower Caves 12490 | -6/Factory | Entered Lower Caves 12518 | -6/Lower Caves | Encountered a Warlord checkpoint 12528 | -6/Lower Caves | Learned Factory emergency access door positions 12757 | -6/Lower Caves | Ambushed by research squad 12827 | -6/Lower Caves | Discovered new exit (range 12) 12899 | -6/Lower Caves | Entered another Lower Caves area 12954 | -6/Lower Caves | Discovered new exit (range 15) 13379 | -6/Lower Caves | Discovered new exit (range 10) 13397 | -6/Lower Caves | Entered Data Miner 13397 | -6/Data Miner | Discovered new exit (range 6) 13424 | -6/Data Miner | Met Data Miner 13449 | -6/Data Miner | Learned location of Section 7 (-3) 13449 | -6/Data Miner | Acquired the access code to Warlord's prototype stash 13473 | -6/Data Miner | Received God Mode back door access code from Data Miner 13486 | -6/Data Miner | Destroyed Data Miner 13488 | -6/Data Miner | Interfaced with the Data Conduit 13640 | -6/Data Miner | Lost 3 parts (1n2u) 13781 | -6/Data Miner | Found Prototype Hackware 13783 | -6/Data Miner | Found Prototype Hackware 13786 | -6/Data Miner | Found Prototype Hackware 13857 | -6/Data Miner | Entered Proximity Caves 13859 | -5/Proximity Caves | Attracted the attention of an 0b10 checkpoint 14395 | -5/Proximity Caves | Discovered new exit (range 9) 14407 | -5/Proximity Caves | System corruption reached 10% 14410 | -5/Proximity Caves | System corruption reached 30% 14433 | -5/Proximity Caves | Entered Factory 14433 | -5/Factory | Evolved 2 slots: Utility x2 14434 | -5/Factory | Identified exit to Extension 14436 | -5/Factory | Loaded intel: 286 machine locations 14644 | -5/Factory | Identified System Mapper 14644 | -5/Factory | Identified Quantum Router 14644 | -5/Factory | Identified Deep Network Scanner 14676 | -5/Factory | Entered Extension 14677 | -5/Extension | Loaded intel: 33 machine locations 14754 | -5/Extension | Build established: Scavenger-Mutant 14757 | -5/Extension | Rescued a captive Derelict 14881 | -5/Extension | Rescued a captive Derelict 14882 | -5/Extension | Rescued a captive Derelict 14898 | -5/Extension | Rescued a captive Derelict 14898 | -5/Extension | Rescued a captive Derelict 15057 | -5/Extension | Rescued a captive Derelict 15058 | -5/Extension | Rescued a captive Derelict 15144 | -5/Extension | Rescued a captive Derelict 15145 | -5/Extension | Rescued a captive Derelict 15508 | -5/Extension | Spotted B-75 Beast 15516 | -5/Extension | Destroyed B-75 Beast 15539 | -5/Extension | Spotted B-75 Beast 15558 | -5/Extension | Allies destroyed B-75 Beast 15585 | -5/Extension | Lost 4 allies 15642 | -5/Extension | Rescued a captive Derelict 15644 | -5/Extension | Rescued a captive Derelict 16146 | -5/Extension | Rescued A7 16282 | -5/Extension | Discovered new exit (range 10) 16285 | -5/Extension | Discovered new exit (range 6) 16347 | -5/Extension | Entered Cetus 16347 | -5/Cetus | Accompanied by 15 allies (A7) 16348 | -5/Cetus | Loaded intel: 24 machine locations 16352 | -5/Cetus | Acquired a Cetus Manufacturing Module code from A7 16377 | -5/Cetus | Spotted Cetus Guard 16377 | -5/Cetus | Spotted Cetus Guard 16381 | -5/Cetus | Destroyed Cetus Guard 16381 | -5/Cetus | Destroyed Cetus Guard 16382 | -5/Cetus | Spotted Cetus Guard 16384 | -5/Cetus | Spotted Cetus Guard 16387 | -5/Cetus | Destroyed Cetus Guard 16387 | -5/Cetus | Destroyed Cetus Guard 16509 | -5/Cetus | Started Cetus Manufacturing Module 16531 | -5/Cetus | Escorted A7 to Cetus Mainframe 16534 | -5/Cetus | Manufactured an Enhanced Grunt 16559 | -5/Cetus | Manufactured an Enhanced Grunt 16561 | -5/Cetus | Discovered new exit (range 16) 16584 | -5/Cetus | Manufactured an Enhanced Grunt 16609 | -5/Cetus | Manufactured an Enhanced Grunt 16634 | -5/Cetus | Manufactured an Enhanced Grunt 16782 | -5/Cetus | Entered Archives 16782 | -5/Archives | Accompanied by 19 allies (A7) 16783 | -5/Archives | Loaded intel: 8 machine locations 16787 | -5/Archives | Received a hacking code to weaken MAIN.C 16845 | -5/Archives | Build established: Commander-Mutant 16850 | -5/Archives | Lost 3 allies 16869 | -5/Archives | Discovered new exit (range 16) 16901 | -5/Archives | Discovered new exit (range 16) 17061 | -5/Archives | Entered Hub_04(d) 17061 | -5/Hub_04(d) | Accompanied by 15 allies 17062 | -5/Hub_04(d) | Loaded intel: 108 machine locations 17161 | -5/Hub_04(d) | Lost 3 allies 17174 | -5/Hub_04(d) | Spotted B-75 Beast 17184 | -5/Hub_04(d) | Allies destroyed B-75 Beast 17213 | -5/Hub_04(d) | Discovered new exit (range 13) 17232 | -5/Hub_04(d) | Build established: Scavenger-Mutant 17241 | -5/Hub_04(d) | Lost 7 allies 17361 | -5/Hub_04(d) | First assault squad dispatched 17493 | -5/Hub_04(d) | Network Hub disabled 17499 | -5/Hub_04(d) | Entered Factory 17499 | -4/Factory | Evolved 2 slots: Propulsion x2 17501 | -4/Factory | Loaded intel: 271 machine locations 17574 | -4/Factory | Found Quantum Capacitor 17999 | -4/Factory | First assault squad dispatched 18410 | -4/Factory | Build established: Scavenger-Tank 18412 | -4/Factory | Intercept squad dispatched 18439 | -4/Factory | Spotted Tracker 18451 | -4/Factory | Spotted Combat Programmer 18455 | -4/Factory | Destroyed Combat Programmer 18455 | -4/Factory | Destroyed Tracker 18491 | -4/Factory | Identified exit to Upper Caves 18668 | -4/Factory | Crushed by falling debris 18669 | -4/Factory | System corruption reached 10% 18699 | -4/Factory | Lost 4 parts (4u) 18923 | -4/Factory | Spotted B-86 Titan 18927 | -4/Factory | Destroyed B-86 Titan 19007 | -4/Factory | Spotted B-86 Titan 19012 | -4/Factory | Destroyed B-86 Titan 19210 | -4/Factory | Entered Upper Caves 19546 | -4/Upper Caves | Build established: Scavenger-Assassin 19959 | -4/Upper Caves | Learned Research stockpile data 19967 | -4/Upper Caves | Discovered new exit (range 4) 19980 | -4/Upper Caves | Identified exit to Upper Caves 20008 | -4/Upper Caves | Entered another Upper Caves area 20054 | -4/Upper Caves | Discovered new exit (range 20) 20189 | -4/Upper Caves | Spotted B-86 Titan 20323 | -4/Upper Caves | Destroyed B-86 Titan 20497 | -4/Upper Caves | Discovered new exit (range 18) 20549 | -4/Upper Caves | Identified exit to Warlord 20551 | -4/Upper Caves | Entered Warlord 20952 | -4/Warlord | Visited the Vortex Lab 20964 | -4/Warlord | Found Prototype Energy Cannon 20964 | -4/Warlord | Identified Vortex Cannon 20965 | -4/Warlord | Warlord's base attacked by MAIN.C 20969 | -4/Warlord | Found Vortex Cannon 20972 | -4/Warlord | Found Vortex Cannon 20976 | -4/Warlord | Found Vortex Cannon 20981 | -4/Warlord | Found Prototype Energy Gun 20981 | -4/Warlord | Identified Vortex Rifle 20985 | -4/Warlord | Found Vortex Rifle 21056 | -4/Warlord | Met Warlord 21315 | -4/Warlord | Warlord forces counterattacked 21329 | -4/Warlord | Opened Warlord's prototype stash 21335 | -4/Warlord | Found Vortex Chain Reactor 21344 | -4/Warlord | Found Spectral Analyzer 21347 | -4/Warlord | Found Thermal Barrier 21422 | -4/Warlord | Build established: Scavenger-Tank 21640 | -4/Warlord | Warlord base infiltrated, sounded retreat 21700 | -4/Warlord | Spotted Executioner 21730 | -4/Warlord | Spotted Executioner 21762 | -4/Warlord | Found Prototype Launcher 21762 | -4/Warlord | Identified Chain Missile Launcher 21784 | -4/Warlord | Spotted Striker 21786 | -4/Warlord | Spotted Striker 21792 | -4/Warlord | Spotted Striker 21795 | -4/Warlord | Spotted Executioner 21797 | -4/Warlord | Destroyed Striker 21800 | -4/Warlord | Destroyed Executioner 21838 | -4/Warlord | Spotted Executioner 21862 | -4/Warlord | Destroyed 23 combat bots 21864 | -4/Warlord | Discovered new exit (range 17) 21866 | -4/Warlord | Spotted Executioner 21869 | -4/Warlord | Lost 15 allies 21896 | -4/Warlord | Destroyed 8 combat bots 21906 | -4/Warlord | Identified exit to Proximity Caves 21956 | -4/Warlord | Entered Proximity Caves 22264 | -3/Proximity Caves | Build established: Scavenger-Assassin 22296 | -3/Proximity Caves | Discovered new exit (range 22) 22711 | -3/Proximity Caves | Identified exit to Research 22741 | -3/Proximity Caves | Entered Research 22741 | -3/Research | Evolved 2 slots: Utility x1, Weapon x1 22743 | -3/Research | Loaded intel: 134 machine locations 22834 | -3/Research | Found Exp. Terrain Scan Processor 23242 | -3/Research | Discovered new exit (range 15) 23250 | -3/Research | Build established: Scavenger-Tank 23258 | -3/Research | P-80 Master assimilated allied Director 8a 23310 | -3/Research | Identified exit to Armory 23311 | -3/Research | Entered Armory 23312 | -3/Armory | Loaded intel: 74 machine locations 23735 | -3/Armory | Found Fusion Bomb Launcher 23787 | -3/Armory | Found Gamma Bomb Array 23878 | -3/Armory | Lost 3 allies 23927 | -3/Armory | Destroyed 7 combat bots 24156 | -3/Armory | Found Hvy. Reactive Plating 24162 | -3/Armory | Found Hvy. Reactive Plating 24311 | -3/Armory | First assault squad dispatched 24324 | -3/Armory | Spotted B-86 Titan 24339 | -3/Armory | Destroyed B-86 Titan 24344 | -3/Armory | System corruption reached 10% 24381 | -3/Armory | Lost 3 parts (1p1u1w) 24387 | -3/Armory | Destroyed 7 combat bots 24405 | -3/Armory | Allied Derelicts emerged from ambush trap array 24463 | -3/Armory | Repaired Hvy. Reactive Plating 24474 | -3/Armory | Lost 3 allies 24492 | -3/Armory | Repaired Arm. Medium Treads 24772 | -3/Armory | Build established: Hacker-Tank 25013 | -3/Armory | Intercept squad dispatched 25018 | -3/Armory | Spotted Tracker 25019 | -3/Armory | Spotted Tracker 25028 | -3/Armory | Discovered new exit (range 5) 25028 | -3/Armory | Spotted Combat Programmer 25034 | -3/Armory | Identified exit to Lab 25036 | -3/Armory | Entered Lab 25038 | -3/Lab | Discovered new exit (range 9) 25049 | -3/Lab | Identified exit to Research 25052 | -3/Lab | Entered Research 25052 | -2/Research | Warlord forces began assault on 0b10 25052 | -2/Research | Evolved 2 slots: Utility x2 25053 | -2/Research | Loaded intel: 125 machine locations 25145 | -2/Research | Discovered new exit (range 13) 25145 | -2/Research | Discovered new exit (range 4) 25150 | -2/Research | Identified exit to Testing 25162 | -2/Research | Research machine network offline 25173 | -2/Research | Identified exit to Access 25239 | -2/Research | Entered Access 25239 | -1/Access | Evolved 2 slots: Power x1, Utility x1 25240 | -1/Access | Loaded intel: 109 machine locations 25458 | -1/Access | Garrison activated, responded to threat 25720 | -1/Access | Garrison activated, responded to threat 25838 | -1/Access | Intercept squad dispatched 25838 | -1/Access | Garrison activated, responded to threat 25857 | -1/Access | Spotted Tracker 25858 | -1/Access | Spotted Tracker 25866 | -1/Access | Destroyed Tracker 25867 | -1/Access | Destroyed Tracker 25875 | -1/Access | Spotted Combat Programmer 25876 | -1/Access | Spotted Combat Programmer 25879 | -1/Access | Destroyed Combat Programmer 25881 | -1/Access | Destroyed Combat Programmer 25902 | -1/Access | Destroyed 13 combat bots 26015 | -1/Access | Discovered new exit (range 8) 26069 | -1/Access | Spotted B-99 Colossus 26090 | -1/Access | Destroyed B-99 Colossus 26107 | -1/Access | Spotted B-99 Colossus 26153 | -1/Access | Destroyed B-99 Colossus 26166 | -1/Access | Found Prototype Ballistic Gun 26166 | -1/Access | Identified Multirail 26220 | -1/Access | Identified exit to Command 26221 | -1/Access | Entered Command 26222 | -1/Command | Loaded intel: 70 machine locations 26385 | -1/Command | Build established: Scavenger-Tank 26388 | -1/Command | Spotted Combat Programmer 26388 | -1/Command | Spotted Combat Programmer 26390 | -1/Command | Spotted M Guard 26390 | -1/Command | Spotted M Guard 26391 | -1/Command | Destroyed Combat Programmer 26391 | -1/Command | Destroyed Combat Programmer 26396 | -1/Command | Destroyed M Guard 26397 | -1/Command | Destroyed M Guard 26397 | -1/Command | All MAIN.C guards destroyed 26431 | -1/Command | Found Prototype Protection 26431 | -1/Command | Identified Hvy. Regenerative Plating 26437 | -1/Command | Found Zero-point Reactor 26449 | -1/Command | Found Zero-point Reactor 26471 | -1/Command | First assault squad dispatched 26500 | -1/Command | Met MAIN.C 26561 | -1/Command | Hacked MAIN.C using A7's code 26565 | -1/Command | System corruption reached 10% 26608 | -1/Command | Destroyed MAIN.C Shell 26610 | -1/Command | MAIN.C activated Command garrisons 26677 | -1/Command | Released all parts (7) 26681 | -1/Command | Core integrity fell below 50% 26687 | -1/Command | Core integrity fell below 20% 26689 | -1/Command | Destroyed 14 combat bots 26690 | -1/Command | Destroyed by MAIN.C with Omega Cannon Last Messages --------------- 26677_ Exp. Energy Well crushed and broken. 26677_ Enh. Hardcell Cannon crushed and broken. 26677_ Gamma Bomb Array crushed and broken. 26677_ Exp. Energy Well crushed and broken. 26677_ Released Deep Network Scanner. 26677_ Released Adv. Signal Interpreter. 26677_ Released Lrn. Tractor Beam. 26677_ Lrn. Tractor Beam crushed and broken. 26677_ Released Enh. Hardcell Cannon. 26677_ Enh. Hardcell Cannon crushed and broken. 26678_ P-80 Master resets S-43 Plague, system corruption cleaned. 26680_ Knocked back. 26681_ Acquired Xenon Bombardment Thruster. 26683_ Acquired Cesium-ion Thruster. 26683_ MAIN.C reaction time slowed by virus. 26683_ Xenon Bombardment Thruster destroyed. 26684_ MAIN.C reaction time slowed by virus. 26690_ System corrupted: Slammed into wall. Map ----- +----------------------------------------------------+ | ?????????????????????????????????????????????????? | | ?????????????????????????????????????????????????? | | ?????????????????????????????????????????????????? | | ?????????????????????????????????????????????????? | | ?????????????????????????????????????????????????? | | ?????????????????????????????????????????????????? | | ?????????????????????????????????????????????????? | | ?????????????????????????????????????????????????? | | ?????????????????????????????????????????????????? | | ?????????????????????????????????????????????????? | | ?????????????????????????????????????????????????? | | ?????????????????????????????????????????????????? | | ?????????????????????????????????????????????????? | | ?????????????????????????????????????????????????? | | ?????????????????????????????????????????????????? | | ?????????????????????????????????????????????????? | | ?????????????????????????????????????????????????? | | ?????????????????????????????????????????????????? | | ?????????????????????????????????????????????????? | | ????????????????############?????????????????????? | | ??????"""""""??"""" #?????????????????????? | | ??????""???????"" #?????????????????????? | | ??????"""""??? "" ####################### | | ??????""""""""""" / ssss s%[%/*=%# | | ??????"???"???""" % / sssses%M% / ]=]==[# | | ??????""??"""""" @ ; ssss s*p!%!%%# | | ??????""??"""""" ###################=%!# | | ???????"??"""""" #?????????????????#%=%# | | ???????"??????"" #?????????????????#=%=# | | ???????"????? " ""#?????????????????#**%[ | | ??????""""""""" """""""#?????????????????#///# | | ??????""????? """""""""#?????????????????#=%% | | ???????????? """""""""""#?????????????????# =%! | | ????????????? "?"?" " #?????????????????# "! | | ????????????? ??"?"?"??? "???????????????????# !] | | ???"""????????"?"?"?""""?"???????????????????# | | ???"""??????"""?"?"???""""???????????????????# * | | ???"""??????"???"?"????"?????????????????????##### | | ?????????""""""""""????"?????????????????????????? | | ?????????"?"""??"??""""""""??????????????????????? | | ???????????"""??"??"???"?????????????????????????? | | ?????????????????????????????????????????????????? | | ?????????????????????????????????????????????????? | | ?????????????????????????????????????????????????? | | ?????????????????????????????????????????????????? | | ?????????????????????????????????????????????????? | | ?????????????????????????????????????????????????? | | ?????????????????????????????????????????????????? | | ?????????????????????????????????????????????????? | | ?????????????????????????????????????????????????? | +----------------------------------------------------+ Best States ------------- Heat Dissipation 145 Coolant Potential 120 Energy Generation 83 Energy Capacity 950 Matter Stores 300 Matter Capacity 300 Sight Range 24 Robot Scan Range 15 Terrain Scan Density 1010 Jamming Range 16 Cloak Strength 4 Base Temperature (-) 200 Armor Coverage 1650 Resistance: KI 40 Resistance: TH 50 Resistance: EM 20 Power Shielding 66 Utility Shielding 33 Weapon Cycling 25 Melee Speed Boost 30 Evasion (%) 63 Targeting Accuracy 8 Recoil Reduction 6 Particle Charging 25 Offensive Hacking 25 Item Schematics ----------------- Imp. KE Penetrator | -7/Zion | Archive Imp. Reaction Control System | -7/Zion | Archive Arm. Huge Wheel | -7/Zion | Archive Tesla Rifle | -7/Zion | Archive System Restoration Module | -7/Zion | Archive Arm. Leg | -7/Zion | Archive Lyr. Light Armor Plating | -7/Zion | Archive Thermic Laser | -7/Zion | Archive Gatling Laser | -7/Zion | Archive Imp. Core Shielding | -7/Zion | Archive Imp. Remote Datajack | -7/Zion | Archive Adv. Heat Sink | -7/Zion | Archive Imp. Medium Armor Plating | -7/Zion | Archive Imp. Carbon-fiber Leg | -7/Zion | Archive Power Amplifier | -7/Zion | Archive Combat Drone Bay | -6/Data Miner | Free Lgt. Regenerative Plating | -6/Data Miner | Free Enh. Flexi-carbon Leg | -6/Data Miner | Free Imp. Matter Compressor | -6/Data Miner | Free Hvy. Proton Missile Launcher | -6/Data Miner | Free Imp. Point Defense System | -6/Data Miner | Free Phase Gun | -6/Data Miner | Free Imp. Coolant Injector | -6/Data Miner | Free Lgt. Antimatter Reactor | -6/Data Miner | Free Adv. Thermal Shield | -6/Data Miner | Free Adv. Heavy Treads | -6/Data Miner | Free Adv. Recalibrator | -6/Data Miner | Free Adv. VSS Leg | -6/Data Miner | Free Robot Schematics ------------------ L-41 Fighter | -7/Zion | Archive K-01 Serf | -7/Zion | Archive B-36 Bruiser | -7/Zion | Archive A-15 Conveyor | -6/Data Miner | Free S-27 Virus | -6/Data Miner | Free B-60 Warrior | -6/Data Miner | Free L-61 Swordsman | -6/Data Miner | Free Fabricated ------------ Nothing Repaired ---------- Hvy. Reactive Plating | 9% | -3/Armory Arm. Medium Treads | 5% | -3/Armory Alien Tech Used ----------------- None Achievements -------------- None Challenges ------------ None Game ------ Seed InsulatedSmartbombBeamcaster Manual? 0 Play Time 03:38:34 Cumulative 480.2 hours Start 2025.08.24 @ 10:16:26 End 2025.08.26 @ 11:59:37 Sessions 5 Manual Loads 0 Difficulty Rogue Special Mode None Game No. 207 Rogue 123 Adventurer 32 Explorer 52 Win Type - Total 54 Types 27/6/9/1/0/2/6/1/1/1 Lore% 95 Gallery% 93 Achievement% 85 Wizard Run 0 Options --------- Layout 2 ASCII 0 Keyboard 0 Movement Mouse Keybinds 1 Fullscreen 1 Font 32/Tamsyn Map View 50x44 Zoom Use 0% Tactical HUD 1 Map Filters NONE Filters NONE Steam 1 RUN: 8702f317-2a94-4b72-906a-cc347110ff1a